Department,Entity, Transaction Date, Expense Type, Expense Area, Supplier Name,Transaction number, Amount, Invoice Description
DFID,CSC,01/09/2017,Tuition Fee,Award Costs,Birmingham City University,PIN028703,9600,
DFID,CSC,01/09/2017,Scholar Travel,Award Costs,Sheffield Hallam Univ,PIN028704,632.22,
DFID,CSC,01/09/2017,Scholar Allowances,Award Costs,Sheffield Hallam Univ,PIN028705,450,
DFID,CSC,01/09/2017,Scholar Allowances,Award Costs,Sheffield Hallam Univ,PIN028705,400,
DFID,CSC,01/09/2017,Award Support Grant,Award Costs,University of Sheffield,PIN028706,1142,
DFID,CSC,01/09/2017,Scholar Allowances,Award Costs,Glasgow Caledonian University,PIN028707,450,
DFID,CSC,01/09/2017,Scholar Allowances,Award Costs,Glasgow Caledonian University,PIN028707,400,
DFID,CSC,01/09/2017,Scholar Allowances,Award Costs,Scholar,PIN028712,600,
DFID,CSC,05/09/2017,Scholar Allowances,Award Costs,Scholar,PIN028719,224,
DFID,CSC,05/09/2017,Scholar Stipend,Award Costs,Scholar,PIN028719,1043,
DFID,CSC,07/09/2017,Bank Charges,Award Costs,Mastercard Prepaid Management Services Ltd,PIN028734,850.29,
DFID,CSC,07/09/2017,Scholar Allowances,Award Costs,Mastercard Prepaid Management Services Ltd,PIN028734,414,
DFID,CSC,07/09/2017,Scholar Stipend,Award Costs,Mastercard Prepaid Management Services Ltd,PIN028734,3960.91,
DFID,CSC,07/09/2017,Scholar Allowances,Award Costs,Mastercard Prepaid Management Services Ltd,PIN028734,414,
DFID,CSC,07/09/2017,Scholar Stipend,Award Costs,Mastercard Prepaid Management Services Ltd,PIN028734,4175.46,
DFID,CSC,07/09/2017,Scholar Allowances,Award Costs,Mastercard Prepaid Management Services Ltd,PIN028734,414,
DFID,CSC,07/09/2017,Scholar Stipend,Award Costs,Mastercard Prepaid Management Services Ltd,PIN028734,3579.89,
DFID,CSC,07/09/2017,Scholar Allowances,Award Costs,Mastercard Prepaid Management Services Ltd,PIN028734,414,
DFID,CSC,07/09/2017,Scholar Stipend,Award Costs,Mastercard Prepaid Management Services Ltd,PIN028734,3960.91,
DFID,CSC,07/09/2017,Scholar Allowances,Award Costs,Mastercard Prepaid Management Services Ltd,PIN028734,414,
DFID,CSC,07/09/2017,Scholar Stipend,Award Costs,Mastercard Prepaid Management Services Ltd,PIN028734,3404.94,
DFID,CSC,07/09/2017,Scholar Allowances,Award Costs,Mastercard Prepaid Management Services Ltd,PIN028734,414,
DFID,CSC,07/09/2017,Scholar Stipend,Award Costs,Mastercard Prepaid Management Services Ltd,PIN028734,3195,
DFID,CSC,07/09/2017,Scholar Allowances,Award Costs,Mastercard Prepaid Management Services Ltd,PIN028734,414,
DFID,CSC,07/09/2017,Scholar Stipend,Award Costs,Mastercard Prepaid Management Services Ltd,PIN028734,3649.87,
DFID,CSC,07/09/2017,Scholar Allowances,Award Costs,Mastercard Prepaid Management Services Ltd,PIN028734,414,
DFID,CSC,07/09/2017,Scholar Stipend,Award Costs,Mastercard Prepaid Management Services Ltd,PIN028734,3404.94,
DFID,CSC,07/09/2017,Scholar Allowances,Award Costs,Mastercard Prepaid Management Services Ltd,PIN028734,414,
DFID,CSC,07/09/2017,Scholar Stipend,Award Costs,Mastercard Prepaid Management Services Ltd,PIN028734,2339.94,
DFID,CSC,07/09/2017,Scholar Allowances,Award Costs,Mastercard Prepaid Management Services Ltd,PIN028734,414,
DFID,CSC,07/09/2017,Scholar Stipend,Award Costs,Mastercard Prepaid Management Services Ltd,PIN028734,3894.8,
DFID,CSC,07/09/2017,Scholar Allowances,Award Costs,Mastercard Prepaid Management Services Ltd,PIN028734,414,
DFID,CSC,07/09/2017,Scholar Stipend,Award Costs,Mastercard Prepaid Management Services Ltd,PIN028734,3894.8,
DFID,CSC,07/09/2017,Scholar Allowances,Award Costs,Mastercard Prepaid Management Services Ltd,PIN028734,414,
DFID,CSC,07/09/2017,Scholar Stipend,Award Costs,Mastercard Prepaid Management Services Ltd,PIN028734,3195,
DFID,CSC,07/09/2017,Scholar Allowances,Award Costs,Mastercard Prepaid Management Services Ltd,PIN028734,414,
DFID,CSC,07/09/2017,Scholar Stipend,Award Costs,Mastercard Prepaid Management Services Ltd,PIN028734,3719.85,
DFID,CSC,07/09/2017,Scholar Allowances,Award Costs,Mastercard Prepaid Management Services Ltd,PIN028734,414,
DFID,CSC,07/09/2017,Scholar Stipend,Award Costs,Mastercard Prepaid Management Services Ltd,PIN028734,4175.46,
DFID,CSC,07/09/2017,Scholar Allowances,Award Costs,Mastercard Prepaid Management Services Ltd,PIN028734,414,
DFID,CSC,07/09/2017,Scholar Stipend,Award Costs,Mastercard Prepaid Management Services Ltd,PIN028734,3195,
DFID,CSC,07/09/2017,Scholar Stipend,Award Costs,Mastercard Prepaid Management Services Ltd,PIN028734,3894.8,
DFID,CSC,07/09/2017,Scholar Allowances,Award Costs,Mastercard Prepaid Management Services Ltd,PIN028734,414,
DFID,CSC,07/09/2017,Scholar Stipend,Award Costs,Mastercard Prepaid Management Services Ltd,PIN028734,3649.87,
DFID,CSC,07/09/2017,Scholar Allowances,Award Costs,Mastercard Prepaid Management Services Ltd,PIN028734,414,
DFID,CSC,07/09/2017,Scholar Stipend,Award Costs,Mastercard Prepaid Management Services Ltd,PIN028734,3824.82,
DFID,CSC,07/09/2017,Scholar Allowances,Award Costs,Mastercard Prepaid Management Services Ltd,PIN028734,414,
DFID,CSC,07/09/2017,Scholar Stipend,Award Costs,Mastercard Prepaid Management Services Ltd,PIN028734,3918,
DFID,CSC,07/09/2017,Scholar Allowances,Award Costs,Mastercard Prepaid Management Services Ltd,PIN028734,414,
DFID,CSC,07/09/2017,Scholar Stipend,Award Costs,Mastercard Prepaid Management Services Ltd,PIN028734,3894.8,
DFID,CSC,07/09/2017,Scholar Stipend,Award Costs,Mastercard Prepaid Management Services Ltd,PIN028734,3404.94,
DFID,CSC,07/09/2017,Scholar Allowances,Award Costs,Mastercard Prepaid Management Services Ltd,PIN028734,414,
DFID,CSC,07/09/2017,Scholar Allowances,Award Costs,Mastercard Prepaid Management Services Ltd,PIN028734,414,
DFID,CSC,08/09/2017,Scholar Allowances,Award Costs,Scholar,PIN028723,500,
DFID,CSC,08/09/2017,Award Support Grant,Award Costs,London Metropolitan University,PIN028728,3500,
DFID,CSC,08/09/2017,Scholar Engagement,Programme Costs,Royal Over-Seas League,PIN028730,2544.57,
DFID,CSC,08/09/2017,Scholar Stipend,Award Costs,Scholar,PIN028732,1043,
DFID,CSC,08/09/2017,Reimbursements,Award Costs,Scholar,PIN028732,1043,
DFID,CSC,08/09/2017,Scholar Engagement,Programme Costs,Innov8 Conference Services Ltd,PIN028733,566.67,
DFID,CSC,08/09/2017,Scholar Engagement,Programme Costs,Innov8 Conference Services Ltd,PIN028733,2833.33,
DFID,CSC,08/09/2017,Bank Charges,Award Costs,Mastercard Prepaid Management Services Ltd,PIN028735,627.93,
DFID,CSC,08/09/2017,Scholar Allowances,Award Costs,Mastercard Prepaid Management Services Ltd,PIN028735,414,
DFID,CSC,08/09/2017,Scholar Stipend,Award Costs,Mastercard Prepaid Management Services Ltd,PIN028735,4475.83,
DFID,CSC,08/09/2017,Scholar Allowances,Award Costs,Mastercard Prepaid Management Services Ltd,PIN028735,414,
DFID,CSC,08/09/2017,Scholar Stipend,Award Costs,Mastercard Prepaid Management Services Ltd,PIN028735,3195,
DFID,CSC,08/09/2017,Scholar Allowances,Award Costs,Mastercard Prepaid Management Services Ltd,PIN028735,414,
DFID,CSC,08/09/2017,Scholar Stipend,Award Costs,Mastercard Prepaid Management Services Ltd,PIN028735,3859.81,
DFID,CSC,08/09/2017,Scholar Allowances,Award Costs,Mastercard Prepaid Management Services Ltd,PIN028735,414,
DFID,CSC,08/09/2017,Scholar Stipend,Award Costs,Mastercard Prepaid Management Services Ltd,PIN028735,2969.76,
DFID,CSC,08/09/2017,Scholar Allowances,Award Costs,Mastercard Prepaid Management Services Ltd,PIN028735,414,
DFID,CSC,08/09/2017,Scholar Allowances,Award Costs,Mastercard Prepaid Management Services Ltd,PIN028735,414,
DFID,CSC,08/09/2017,Scholar Stipend,Award Costs,Mastercard Prepaid Management Services Ltd,PIN028735,4475.83,
DFID,CSC,08/09/2017,Scholar Allowances,Award Costs,Mastercard Prepaid Management Services Ltd,PIN028735,414,
DFID,CSC,08/09/2017,Scholar Stipend,Award Costs,Mastercard Prepaid Management Services Ltd,PIN028735,4475.83,
DFID,CSC,08/09/2017,Scholar Allowances,Award Costs,Mastercard Prepaid Management Services Ltd,PIN028735,414,
DFID,CSC,08/09/2017,Scholar Stipend,Award Costs,Mastercard Prepaid Management Services Ltd,PIN028735,4104.74,
DFID,CSC,08/09/2017,Scholar Allowances,Award Costs,Mastercard Prepaid Management Services Ltd,PIN028735,414,
DFID,CSC,08/09/2017,Scholar Stipend,Award Costs,Mastercard Prepaid Management Services Ltd,PIN028735,3404.94,
DFID,CSC,08/09/2017,Scholar Allowances,Award Costs,Mastercard Prepaid Management Services Ltd,PIN028735,414,
DFID,CSC,08/09/2017,Scholar Stipend,Award Costs,Mastercard Prepaid Management Services Ltd,PIN028735,3195,
DFID,CSC,08/09/2017,Scholar Allowances,Award Costs,Mastercard Prepaid Management Services Ltd,PIN028735,414,
DFID,CSC,08/09/2017,Scholar Stipend,Award Costs,Mastercard Prepaid Management Services Ltd,PIN028735,3579.89,
DFID,CSC,08/09/2017,Scholar Allowances,Award Costs,Mastercard Prepaid Management Services Ltd,PIN028735,414,
DFID,CSC,08/09/2017,Scholar Stipend,Award Costs,Mastercard Prepaid Management Services Ltd,PIN028735,3754.84,
DFID,CSC,08/09/2017,Scholar Allowances,Award Costs,Mastercard Prepaid Management Services Ltd,PIN028735,414,
DFID,CSC,08/09/2017,Scholar Stipend,Award Costs,Mastercard Prepaid Management Services Ltd,PIN028735,3894.8,
DFID,CSC,08/09/2017,Scholar Allowances,Award Costs,Mastercard Prepaid Management Services Ltd,PIN028735,414,
DFID,CSC,08/09/2017,Scholar Stipend,Award Costs,Mastercard Prepaid Management Services Ltd,PIN028735,3894.8,
DFID,CSC,08/09/2017,Scholar Allowances,Award Costs,Mastercard Prepaid Management Services Ltd,PIN028735,414,
DFID,CSC,08/09/2017,Scholar Stipend,Award Costs,Mastercard Prepaid Management Services Ltd,PIN028735,3894.8,
DFID,CSC,08/09/2017,Scholar Stipend,Award Costs,Mastercard Prepaid Management Services Ltd,PIN028735,3404.94,
DFID,CSC,11/09/2017,Bank Charges,Award Costs,Mastercard Prepaid Management Services Ltd,PIN028736,291.45,
DFID,CSC,11/09/2017,Scholar Allowances,Award Costs,Mastercard Prepaid Management Services Ltd,PIN028736,414,
DFID,CSC,11/09/2017,Scholar Stipend,Award Costs,Mastercard Prepaid Management Services Ltd,PIN028736,3649.87,
DFID,CSC,11/09/2017,Scholar Allowances,Award Costs,Mastercard Prepaid Management Services Ltd,PIN028736,414,
DFID,CSC,11/09/2017,Scholar Stipend,Award Costs,Mastercard Prepaid Management Services Ltd,PIN028736,3439.93,
DFID,CSC,11/09/2017,Scholar Allowances,Award Costs,Mastercard Prepaid Management Services Ltd,PIN028736,414,
DFID,CSC,11/09/2017,Scholar Stipend,Award Costs,Mastercard Prepaid Management Services Ltd,PIN028736,4347.1,
DFID,CSC,11/09/2017,Scholar Allowances,Award Costs,Mastercard Prepaid Management Services Ltd,PIN028736,414,
DFID,CSC,11/09/2017,Scholar Stipend,Award Costs,Mastercard Prepaid Management Services Ltd,PIN028736,3894.8,
DFID,CSC,11/09/2017,Scholar Allowances,Award Costs,Mastercard Prepaid Management Services Ltd,PIN028736,414,
DFID,CSC,11/09/2017,Scholar Stipend,Award Costs,Mastercard Prepaid Management Services Ltd,PIN028736,3824.82,
DFID,CSC,11/09/2017,Scholar Allowances,Award Costs,Mastercard Prepaid Management Services Ltd,PIN028736,414,
DFID,CSC,11/09/2017,Scholar Stipend,Award Costs,Mastercard Prepaid Management Services Ltd,PIN028736,3894.8,
DFID,CSC,11/09/2017,Scholar Allowances,Award Costs,Mastercard Prepaid Management Services Ltd,PIN028736,414,
DFID,CSC,11/09/2017,Scholar Stipend,Award Costs,Mastercard Prepaid Management Services Ltd,PIN028736,3195,
DFID,CSC,13/09/2017,Bank Charges,Award Costs,Mastercard Prepaid Management Services Ltd,PIN028768,857.3,
DFID,CSC,13/09/2017,Scholar Allowances,Award Costs,Mastercard Prepaid Management Services Ltd,PIN028768,414,
DFID,CSC,13/09/2017,Scholar Stipend,Award Costs,Mastercard Prepaid Management Services Ltd,PIN028768,4175.46,
DFID,CSC,13/09/2017,Scholar Allowances,Award Costs,Mastercard Prepaid Management Services Ltd,PIN028768,414,
DFID,CSC,13/09/2017,Scholar Stipend,Award Costs,Mastercard Prepaid Management Services Ltd,PIN028768,3719.85,
DFID,CSC,13/09/2017,Scholar Allowances,Award Costs,Mastercard Prepaid Management Services Ltd,PIN028768,414,
DFID,CSC,13/09/2017,Scholar Stipend,Award Costs,Mastercard Prepaid Management Services Ltd,PIN028768,3859.81,
DFID,CSC,13/09/2017,Scholar Allowances,Award Costs,Mastercard Prepaid Management Services Ltd,PIN028768,414,
DFID,CSC,13/09/2017,Scholar Stipend,Award Costs,Mastercard Prepaid Management Services Ltd,PIN028768,3109.72,
DFID,CSC,13/09/2017,Scholar Allowances,Award Costs,Mastercard Prepaid Management Services Ltd,PIN028768,414,
DFID,CSC,13/09/2017,Scholar Stipend,Award Costs,Mastercard Prepaid Management Services Ltd,PIN028768,4475.83,
DFID,CSC,13/09/2017,Scholar Allowances,Award Costs,Mastercard Prepaid Management Services Ltd,PIN028768,414,
DFID,CSC,13/09/2017,Scholar Stipend,Award Costs,Mastercard Prepaid Management Services Ltd,PIN028768,3894.8,
DFID,CSC,13/09/2017,Scholar Allowances,Award Costs,Mastercard Prepaid Management Services Ltd,PIN028768,414,
DFID,CSC,13/09/2017,Scholar Stipend,Award Costs,Mastercard Prepaid Management Services Ltd,PIN028768,3649.87,
DFID,CSC,13/09/2017,Scholar Allowances,Award Costs,Mastercard Prepaid Management Services Ltd,PIN028768,414,
DFID,CSC,13/09/2017,Scholar Stipend,Award Costs,Mastercard Prepaid Management Services Ltd,PIN028768,4034.76,
DFID,CSC,13/09/2017,Scholar Allowances,Award Costs,Mastercard Prepaid Management Services Ltd,PIN028768,414,
DFID,CSC,13/09/2017,Scholar Stipend,Award Costs,Mastercard Prepaid Management Services Ltd,PIN028768,4604.56,
DFID,CSC,13/09/2017,Scholar Allowances,Award Costs,Mastercard Prepaid Management Services Ltd,PIN028768,414,
DFID,CSC,13/09/2017,Scholar Stipend,Award Costs,Mastercard Prepaid Management Services Ltd,PIN028768,3369.95,
DFID,CSC,13/09/2017,Scholar Allowances,Award Costs,Mastercard Prepaid Management Services Ltd,PIN028768,414,
DFID,CSC,13/09/2017,Scholar Stipend,Award Costs,Mastercard Prepaid Management Services Ltd,PIN028768,3649.87,
DFID,CSC,13/09/2017,Scholar Allowances,Award Costs,Mastercard Prepaid Management Services Ltd,PIN028768,414,
DFID,CSC,13/09/2017,Scholar Stipend,Award Costs,Mastercard Prepaid Management Services Ltd,PIN028768,3404.94,
DFID,CSC,13/09/2017,Scholar Stipend,Award Costs,Mastercard Prepaid Management Services Ltd,PIN028768,4475.83,
DFID,CSC,13/09/2017,Scholar Allowances,Award Costs,Mastercard Prepaid Management Services Ltd,PIN028768,414,
DFID,CSC,13/09/2017,Scholar Stipend,Award Costs,Mastercard Prepaid Management Services Ltd,PIN028768,4347.1,
DFID,CSC,13/09/2017,Scholar Allowances,Award Costs,Mastercard Prepaid Management Services Ltd,PIN028768,414,
DFID,CSC,13/09/2017,Scholar Stipend,Award Costs,Mastercard Prepaid Management Services Ltd,PIN028768,4175.46,
DFID,CSC,13/09/2017,Scholar Allowances,Award Costs,Mastercard Prepaid Management Services Ltd,PIN028768,414,
DFID,CSC,13/09/2017,Scholar Stipend,Award Costs,Mastercard Prepaid Management Services Ltd,PIN028768,2934.77,
DFID,CSC,13/09/2017,Scholar Allowances,Award Costs,Mastercard Prepaid Management Services Ltd,PIN028768,414,
DFID,CSC,13/09/2017,Scholar Stipend,Award Costs,Mastercard Prepaid Management Services Ltd,PIN028768,3544.9,
DFID,CSC,13/09/2017,Scholar Allowances,Award Costs,Mastercard Prepaid Management Services Ltd,PIN028768,414,
DFID,CSC,13/09/2017,Scholar Stipend,Award Costs,Mastercard Prepaid Management Services Ltd,PIN028768,4475.83,
DFID,CSC,13/09/2017,Scholar Allowances,Award Costs,Mastercard Prepaid Management Services Ltd,PIN028768,414,
DFID,CSC,13/09/2017,Scholar Stipend,Award Costs,Mastercard Prepaid Management Services Ltd,PIN028768,3649.87,
DFID,CSC,13/09/2017,Scholar Allowances,Award Costs,Mastercard Prepaid Management Services Ltd,PIN028768,414,
DFID,CSC,13/09/2017,Scholar Stipend,Award Costs,Mastercard Prepaid Management Services Ltd,PIN028768,3894.8,
DFID,CSC,13/09/2017,Scholar Allowances,Award Costs,Mastercard Prepaid Management Services Ltd,PIN028768,414,
DFID,CSC,15/09/2017,Scholar Stipend,Award Costs,Scholar,PIN028737,1279,
DFID,CSC,15/09/2017,Scholar Allowances,Award Costs,Scholar,PIN028738,600,
DFID,CSC,15/09/2017,Scholar Allowances,Award Costs,Scholar,PIN028739,668,
DFID,CSC,15/09/2017,Scholar Allowances,Award Costs,Scholar,PIN028739,448,
DFID,CSC,15/09/2017,Scholar Stipend,Award Costs,Scholar,PIN028739,2086,
DFID,CSC,15/09/2017,Scholar Allowances,Award Costs,Scholar,PIN028741,600,
DFID,CSC,15/09/2017,Scholar Stipend,Award Costs,Scholar,PIN028743,2086,
DFID,CSC,15/09/2017,Tuition Fee,Award Costs,University of Surrey,PIN028749,8640,
DFID,CSC,15/09/2017,Alumni Engagement,Programme Costs,TFW Printers,PIN028751,115.2,
DFID,CSC,15/09/2017,Scholar Engagement,Programme Costs,TFW Printers,PIN028751,268.8,
DFID,CSC,15/09/2017,Alumni Engagement,Programme Costs,TFW Printers,PIN028751,576,
DFID,CSC,15/09/2017,Scholar Engagement,Programme Costs,TFW Printers,PIN028751,1344,
DFID,CSC,15/09/2017,Alumni Engagement,Programme Costs,TFW Printers,PIN028752,104,
DFID,CSC,15/09/2017,Alumni Engagement,Programme Costs,TFW Printers,PIN028752,520,
DFID,CSC,15/09/2017,Scholar Engagement,Programme Costs,TFW Printers,PIN028753,232,
DFID,CSC,15/09/2017,Scholar Engagement,Programme Costs,TFW Printers,PIN028753,1160,
DFID,CSC,15/09/2017,Scholar Stipend,Award Costs,Scholar,PIN028755,882.43,
DFID,CSC,15/09/2017,Scholar Stipend,Award Costs,Scholar,PIN028763,1043,
DFID,CSC,15/09/2017,Scholar Allowances,Award Costs,Scholar,PIN028766,448,
DFID,CSC,15/09/2017,Scholar Stipend,Award Costs,Scholar,PIN028766,1279,
DFID,CSC,15/09/2017,Bank Charges,Award Costs,Mastercard Prepaid Management Services Ltd,PIN028769,712.98,
DFID,CSC,15/09/2017,Scholar Allowances,Award Costs,Mastercard Prepaid Management Services Ltd,PIN028769,414,
DFID,CSC,15/09/2017,Scholar Stipend,Award Costs,Mastercard Prepaid Management Services Ltd,PIN028769,3509.91,
DFID,CSC,15/09/2017,Scholar Allowances,Award Costs,Mastercard Prepaid Management Services Ltd,PIN028769,414,
DFID,CSC,15/09/2017,Scholar Stipend,Award Costs,Mastercard Prepaid Management Services Ltd,PIN028769,3649.87,
DFID,CSC,15/09/2017,Scholar Allowances,Award Costs,Mastercard Prepaid Management Services Ltd,PIN028769,414,
DFID,CSC,15/09/2017,Scholar Stipend,Award Costs,Mastercard Prepaid Management Services Ltd,PIN028769,4347.1,
DFID,CSC,15/09/2017,Scholar Stipend,Award Costs,Mastercard Prepaid Management Services Ltd,PIN028769,3144.71,
DFID,CSC,15/09/2017,Scholar Allowances,Award Costs,Mastercard Prepaid Management Services Ltd,PIN028769,414,
DFID,CSC,15/09/2017,Scholar Stipend,Award Costs,Mastercard Prepaid Management Services Ltd,PIN028769,4475.83,
DFID,CSC,15/09/2017,Scholar Allowances,Award Costs,Mastercard Prepaid Management Services Ltd,PIN028769,414,
DFID,CSC,15/09/2017,Scholar Stipend,Award Costs,Mastercard Prepaid Management Services Ltd,PIN028769,3649.87,
DFID,CSC,15/09/2017,Scholar Allowances,Award Costs,Mastercard Prepaid Management Services Ltd,PIN028769,414,
DFID,CSC,15/09/2017,Scholar Stipend,Award Costs,Mastercard Prepaid Management Services Ltd,PIN028769,3649.87,
DFID,CSC,15/09/2017,Scholar Allowances,Award Costs,Mastercard Prepaid Management Services Ltd,PIN028769,414,
DFID,CSC,15/09/2017,Scholar Stipend,Award Costs,Mastercard Prepaid Management Services Ltd,PIN028769,3824.82,
DFID,CSC,15/09/2017,Scholar Allowances,Award Costs,Mastercard Prepaid Management Services Ltd,PIN028769,414,
DFID,CSC,15/09/2017,Scholar Stipend,Award Costs,Mastercard Prepaid Management Services Ltd,PIN028769,3859.81,
DFID,CSC,15/09/2017,Scholar Allowances,Award Costs,Mastercard Prepaid Management Services Ltd,PIN028769,414,
DFID,CSC,15/09/2017,Scholar Stipend,Award Costs,Mastercard Prepaid Management Services Ltd,PIN028769,3404.94,
DFID,CSC,15/09/2017,Scholar Allowances,Award Costs,Mastercard Prepaid Management Services Ltd,PIN028769,414,
DFID,CSC,15/09/2017,Scholar Stipend,Award Costs,Mastercard Prepaid Management Services Ltd,PIN028769,4561.65,
DFID,CSC,15/09/2017,Scholar Allowances,Award Costs,Mastercard Prepaid Management Services Ltd,PIN028769,414,
DFID,CSC,15/09/2017,Scholar Stipend,Award Costs,Mastercard Prepaid Management Services Ltd,PIN028769,3579.89,
DFID,CSC,15/09/2017,Scholar Allowances,Award Costs,Mastercard Prepaid Management Services Ltd,PIN028769,414,
DFID,CSC,15/09/2017,Scholar Stipend,Award Costs,Mastercard Prepaid Management Services Ltd,PIN028769,3404.94,
DFID,CSC,15/09/2017,Scholar Allowances,Award Costs,Mastercard Prepaid Management Services Ltd,PIN028769,414,
DFID,CSC,15/09/2017,Scholar Stipend,Award Costs,Mastercard Prepaid Management Services Ltd,PIN028769,4175.46,
DFID,CSC,15/09/2017,Scholar Allowances,Award Costs,Mastercard Prepaid Management Services Ltd,PIN028769,414,
DFID,CSC,15/09/2017,Scholar Stipend,Award Costs,Mastercard Prepaid Management Services Ltd,PIN028769,3614.88,
DFID,CSC,15/09/2017,Scholar Allowances,Award Costs,Mastercard Prepaid Management Services Ltd,PIN028769,414,
DFID,CSC,15/09/2017,Scholar Stipend,Award Costs,Mastercard Prepaid Management Services Ltd,PIN028769,3789.83,
DFID,CSC,15/09/2017,Scholar Allowances,Award Costs,Mastercard Prepaid Management Services Ltd,PIN028769,414,
DFID,CSC,15/09/2017,Scholar Allowances,Award Costs,Mastercard Prepaid Management Services Ltd,PIN028769,414,
DFID,CSC,15/09/2017,Scholar Stipend,Award Costs,Mastercard Prepaid Management Services Ltd,PIN028769,3614.88,
DFID,CSC,18/09/2017,Bank Charges,Award Costs,Mastercard Prepaid Management Services Ltd,PIN028770,697.54,
DFID,CSC,18/09/2017,Scholar Stipend,Award Costs,Mastercard Prepaid Management Services Ltd,PIN028770,684.18,
DFID,CSC,18/09/2017,Scholar Allowances,Award Costs,Mastercard Prepaid Management Services Ltd,PIN028770,414,
DFID,CSC,18/09/2017,Scholar Stipend,Award Costs,Mastercard Prepaid Management Services Ltd,PIN028770,3404.94,
DFID,CSC,18/09/2017,Scholar Allowances,Award Costs,Mastercard Prepaid Management Services Ltd,PIN028770,414,
DFID,CSC,18/09/2017,Scholar Stipend,Award Costs,Mastercard Prepaid Management Services Ltd,PIN028770,3404.94,
DFID,CSC,18/09/2017,Scholar Allowances,Award Costs,Mastercard Prepaid Management Services Ltd,PIN028770,414,
DFID,CSC,18/09/2017,Scholar Stipend,Award Costs,Mastercard Prepaid Management Services Ltd,PIN028770,4475.83,
DFID,CSC,18/09/2017,Scholar Allowances,Award Costs,Mastercard Prepaid Management Services Ltd,PIN028770,414,
DFID,CSC,18/09/2017,Scholar Stipend,Award Costs,Mastercard Prepaid Management Services Ltd,PIN028770,3649.87,
DFID,CSC,18/09/2017,Scholar Allowances,Award Costs,Mastercard Prepaid Management Services Ltd,PIN028770,414,
DFID,CSC,18/09/2017,Scholar Stipend,Award Costs,Mastercard Prepaid Management Services Ltd,PIN028770,3789.83,
DFID,CSC,18/09/2017,Scholar Allowances,Award Costs,Mastercard Prepaid Management Services Ltd,PIN028770,414,
DFID,CSC,18/09/2017,Scholar Stipend,Award Costs,Mastercard Prepaid Management Services Ltd,PIN028770,4604.56,
DFID,CSC,18/09/2017,Scholar Allowances,Award Costs,Mastercard Prepaid Management Services Ltd,PIN028770,414,
DFID,CSC,18/09/2017,Scholar Stipend,Award Costs,Mastercard Prepaid Management Services Ltd,PIN028770,3960.91,
DFID,CSC,18/09/2017,Scholar Allowances,Award Costs,Mastercard Prepaid Management Services Ltd,PIN028770,414,
DFID,CSC,18/09/2017,Scholar Stipend,Award Costs,Mastercard Prepaid Management Services Ltd,PIN028770,4390.01,
DFID,CSC,18/09/2017,Scholar Allowances,Award Costs,Mastercard Prepaid Management Services Ltd,PIN028770,414,
DFID,CSC,18/09/2017,Scholar Stipend,Award Costs,Mastercard Prepaid Management Services Ltd,PIN028770,4347.1,
DFID,CSC,18/09/2017,Scholar Allowances,Award Costs,Mastercard Prepaid Management Services Ltd,PIN028770,414,
DFID,CSC,18/09/2017,Scholar Stipend,Award Costs,Mastercard Prepaid Management Services Ltd,PIN028770,4475.83,
DFID,CSC,18/09/2017,Scholar Allowances,Award Costs,Mastercard Prepaid Management Services Ltd,PIN028770,414,
DFID,CSC,18/09/2017,Scholar Stipend,Award Costs,Mastercard Prepaid Management Services Ltd,PIN028770,3649.87,
DFID,CSC,18/09/2017,Scholar Allowances,Award Costs,Mastercard Prepaid Management Services Ltd,PIN028770,414,
DFID,CSC,18/09/2017,Scholar Stipend,Award Costs,Mastercard Prepaid Management Services Ltd,PIN028770,3179.7,
DFID,CSC,18/09/2017,Scholar Allowances,Award Costs,Mastercard Prepaid Management Services Ltd,PIN028770,414,
DFID,CSC,18/09/2017,Scholar Stipend,Award Costs,Mastercard Prepaid Management Services Ltd,PIN028770,4475.83,
DFID,CSC,18/09/2017,Scholar Allowances,Award Costs,Mastercard Prepaid Management Services Ltd,PIN028770,414,
DFID,CSC,18/09/2017,Scholar Stipend,Award Costs,Mastercard Prepaid Management Services Ltd,PIN028770,3404.94,
DFID,CSC,18/09/2017,Scholar Allowances,Award Costs,Mastercard Prepaid Management Services Ltd,PIN028770,414,
DFID,CSC,18/09/2017,Scholar Stipend,Award Costs,Mastercard Prepaid Management Services Ltd,PIN028770,3579.89,
DFID,CSC,18/09/2017,Scholar Stipend,Award Costs,Mastercard Prepaid Management Services Ltd,PIN028770,3649.87,
DFID,CSC,18/09/2017,Scholar Allowances,Award Costs,Mastercard Prepaid Management Services Ltd,PIN028770,414,
DFID,CSC,21/09/2017,Scholar Allowances,Award Costs,Scholar,PIN028790,88.31,
DFID,CSC,21/09/2017,Scholar Allowances,Award Costs,Scholar,PIN028790,88.31,
DFID,CSC,21/09/2017,Scholar Stipend,Award Costs,Scholar,PIN028790,719.6,
DFID,CSC,21/09/2017,Scholar Stipend,Award Costs,Scholar,PIN028791,1043,
DFID,CSC,22/09/2017,Consulting Fees,Admin Costs,Toplevel Computing Ltd,PIN028772,186,
DFID,CSC,22/09/2017,Consulting Fees,Admin Costs,Toplevel Computing Ltd,PIN028772,930,
DFID,CSC,22/09/2017,Scholar Travel,Award Costs,Scholar,PIN028774,521.29,
DFID,CSC,22/09/2017,Scholar Allowances,Award Costs,Scholar,PIN028776,1776,
DFID,CSC,22/09/2017,Scholar Allowances,Award Costs,Scholar,PIN028776,896,
DFID,CSC,22/09/2017,Scholar Stipend,Award Costs,Scholar,PIN028776,4172,
DFID,CSC,22/09/2017,Scholar Allowances,Award Costs,Scholar,PIN028780,600,
DFID,CSC,22/09/2017,Tuition Fee,Award Costs,University of Glasgow,PIN028782,14560,
DFID,CSC,22/09/2017,Tuition Fee,Award Costs,University of Glasgow,PIN028783,16000,
DFID,CSC,22/09/2017,Tuition Fee,Award Costs,University of Glasgow,PIN028784,15600,
DFID,CSC,22/09/2017,Tuition Fee,Award Costs,University of Glasgow,PIN028785,12200,
DFID,CSC,22/09/2017,Tuition Fee,Award Costs,University of Glasgow,PIN028786,16000,
DFID,CSC,22/09/2017,Tuition Fee,Award Costs,University of Glasgow,PIN028787,15600,
DFID,CSC,22/09/2017,Tuition Fee,Award Costs,University of Glasgow,PIN028788,11600,
DFID,CSC,22/09/2017,Scholar Allowances,Award Costs,Scholar,PIN028789,600,
DFID,CSC,22/09/2017,Bank Charges,Award Costs,Mastercard Prepaid Management Services Ltd,PIN029449,415.65,
DFID,CSC,22/09/2017,Scholar Allowances,Award Costs,Mastercard Prepaid Management Services Ltd,PIN029449,414,
DFID,CSC,22/09/2017,Scholar Stipend,Award Costs,Mastercard Prepaid Management Services Ltd,PIN029449,3719.85,
DFID,CSC,22/09/2017,Scholar Allowances,Award Costs,Mastercard Prepaid Management Services Ltd,PIN029449,414,
DFID,CSC,22/09/2017,Scholar Stipend,Award Costs,Mastercard Prepaid Management Services Ltd,PIN029449,4475.83,
DFID,CSC,22/09/2017,Scholar Allowances,Award Costs,Mastercard Prepaid Management Services Ltd,PIN029449,414,
DFID,CSC,22/09/2017,Scholar Stipend,Award Costs,Mastercard Prepaid Management Services Ltd,PIN029449,3404.94,
DFID,CSC,22/09/2017,Visa Costs,Award Costs,Mastercard Prepaid Management Services Ltd,PIN029449,235,
DFID,CSC,22/09/2017,Scholar Allowances,Award Costs,Mastercard Prepaid Management Services Ltd,PIN029449,895.83,
DFID,CSC,22/09/2017,Scholar Stipend,Award Costs,Mastercard Prepaid Management Services Ltd,PIN029449,4294.31,
DFID,CSC,22/09/2017,Visa Costs,Award Costs,Mastercard Prepaid Management Services Ltd,PIN029449,235,
DFID,CSC,22/09/2017,Scholar Allowances,Award Costs,Mastercard Prepaid Management Services Ltd,PIN029449,895.83,
DFID,CSC,22/09/2017,Scholar Stipend,Award Costs,Mastercard Prepaid Management Services Ltd,PIN029449,2827.96,
DFID,CSC,22/09/2017,Visa Costs,Award Costs,Mastercard Prepaid Management Services Ltd,PIN029449,235,
DFID,CSC,22/09/2017,Scholar Allowances,Award Costs,Mastercard Prepaid Management Services Ltd,PIN029449,895.83,
DFID,CSC,22/09/2017,Scholar Stipend,Award Costs,Mastercard Prepaid Management Services Ltd,PIN029449,2827.96,
DFID,CSC,22/09/2017,Scholar Allowances,Award Costs,Mastercard Prepaid Management Services Ltd,PIN029449,895.83,
DFID,CSC,22/09/2017,Scholar Stipend,Award Costs,Mastercard Prepaid Management Services Ltd,PIN029449,2827.96,
DFID,CSC,22/09/2017,Visa Costs,Award Costs,Mastercard Prepaid Management Services Ltd,PIN029449,235,
DFID,CSC,22/09/2017,Scholar Allowances,Award Costs,Mastercard Prepaid Management Services Ltd,PIN029449,895.83,
DFID,CSC,22/09/2017,Scholar Stipend,Award Costs,Mastercard Prepaid Management Services Ltd,PIN029449,5780.8,
DFID,CSC,22/09/2017,Visa Costs,Award Costs,Mastercard Prepaid Management Services Ltd,PIN029449,235,
DFID,CSC,22/09/2017,Scholar Allowances,Award Costs,Mastercard Prepaid Management Services Ltd,PIN029449,447.92,
DFID,CSC,22/09/2017,Scholar Stipend,Award Costs,Mastercard Prepaid Management Services Ltd,PIN029449,1571.09,
DFID,CSC,22/09/2017,Visa Costs,Award Costs,Mastercard Prepaid Management Services Ltd,PIN029449,235,
DFID,CSC,22/09/2017,Scholar Allowances,Award Costs,Mastercard Prepaid Management Services Ltd,PIN029449,447.92,
DFID,CSC,22/09/2017,Scholar Stipend,Award Costs,Mastercard Prepaid Management Services Ltd,PIN029449,1571.09,
DFID,CSC,22/09/2017,Visa Costs,Award Costs,Mastercard Prepaid Management Services Ltd,PIN029449,235,
DFID,CSC,22/09/2017,Bank Charges,Award Costs,Mastercard Prepaid Management Services Ltd,PIN029450,575.35,
DFID,CSC,22/09/2017,Visa Costs,Award Costs,Mastercard Prepaid Management Services Ltd,PIN029450,235,
DFID,CSC,22/09/2017,Scholar Allowances,Award Costs,Mastercard Prepaid Management Services Ltd,PIN029450,895.83,
DFID,CSC,22/09/2017,Scholar Stipend,Award Costs,Mastercard Prepaid Management Services Ltd,PIN029450,4660.9,
DFID,CSC,22/09/2017,Visa Costs,Award Costs,Mastercard Prepaid Management Services Ltd,PIN029450,235,
DFID,CSC,22/09/2017,Scholar Allowances,Award Costs,Mastercard Prepaid Management Services Ltd,PIN029450,559.9,
DFID,CSC,22/09/2017,Scholar Stipend,Award Costs,Mastercard Prepaid Management Services Ltd,PIN029450,1728.2,
DFID,CSC,22/09/2017,Scholar Allowances,Award Costs,Mastercard Prepaid Management Services Ltd,PIN029450,414,
DFID,CSC,22/09/2017,Scholar Stipend,Award Costs,Mastercard Prepaid Management Services Ltd,PIN029450,3195,
DFID,CSC,22/09/2017,Scholar Allowances,Award Costs,Mastercard Prepaid Management Services Ltd,PIN029450,414,
DFID,CSC,22/09/2017,Scholar Stipend,Award Costs,Mastercard Prepaid Management Services Ltd,PIN029450,3404.94,
DFID,CSC,22/09/2017,Scholar Allowances,Award Costs,Mastercard Prepaid Management Services Ltd,PIN029450,414,
DFID,CSC,22/09/2017,Scholar Stipend,Award Costs,Mastercard Prepaid Management Services Ltd,PIN029450,3960.91,
DFID,CSC,22/09/2017,Scholar Allowances,Award Costs,Mastercard Prepaid Management Services Ltd,PIN029450,414,
DFID,CSC,22/09/2017,Scholar Stipend,Award Costs,Mastercard Prepaid Management Services Ltd,PIN029450,3649.87,
DFID,CSC,22/09/2017,Scholar Allowances,Award Costs,Mastercard Prepaid Management Services Ltd,PIN029450,414,
DFID,CSC,22/09/2017,Scholar Stipend,Award Costs,Mastercard Prepaid Management Services Ltd,PIN029450,3404.94,
DFID,CSC,22/09/2017,Scholar Allowances,Award Costs,Mastercard Prepaid Management Services Ltd,PIN029450,414,
DFID,CSC,22/09/2017,Scholar Stipend,Award Costs,Mastercard Prepaid Management Services Ltd,PIN029450,3579.89,
DFID,CSC,22/09/2017,Scholar Allowances,Award Costs,Mastercard Prepaid Management Services Ltd,PIN029450,414,
DFID,CSC,22/09/2017,Scholar Stipend,Award Costs,Mastercard Prepaid Management Services Ltd,PIN029450,3960.91,
DFID,CSC,22/09/2017,Scholar Allowances,Award Costs,Mastercard Prepaid Management Services Ltd,PIN029450,414,
DFID,CSC,22/09/2017,Scholar Stipend,Award Costs,Mastercard Prepaid Management Services Ltd,PIN029450,3960.91,
DFID,CSC,22/09/2017,Scholar Allowances,Award Costs,Mastercard Prepaid Management Services Ltd,PIN029450,414,
DFID,CSC,22/09/2017,Scholar Stipend,Award Costs,Mastercard Prepaid Management Services Ltd,PIN029450,3544.9,
DFID,CSC,22/09/2017,Scholar Allowances,Award Costs,Mastercard Prepaid Management Services Ltd,PIN029450,414,
DFID,CSC,22/09/2017,Scholar Stipend,Award Costs,Mastercard Prepaid Management Services Ltd,PIN029450,4003.82,
DFID,CSC,22/09/2017,Scholar Allowances,Award Costs,Mastercard Prepaid Management Services Ltd,PIN029450,414,
DFID,CSC,22/09/2017,Scholar Stipend,Award Costs,Mastercard Prepaid Management Services Ltd,PIN029450,4390.01,
DFID,CSC,22/09/2017,Scholar Allowances,Award Costs,Mastercard Prepaid Management Services Ltd,PIN029450,414,
DFID,CSC,22/09/2017,Scholar Stipend,Award Costs,Mastercard Prepaid Management Services Ltd,PIN029450,3195,
DFID,CSC,25/09/2017,Bank Charges,Award Costs,Mastercard Prepaid Management Services Ltd,PIN029451,496.82,
DFID,CSC,25/09/2017,Scholar Allowances,Award Costs,Mastercard Prepaid Management Services Ltd,PIN029451,414,
DFID,CSC,25/09/2017,Scholar Stipend,Award Costs,Mastercard Prepaid Management Services Ltd,PIN029451,4175.46,
DFID,CSC,25/09/2017,Scholar Allowances,Award Costs,Mastercard Prepaid Management Services Ltd,PIN029451,414,
DFID,CSC,25/09/2017,Scholar Stipend,Award Costs,Mastercard Prepaid Management Services Ltd,PIN029451,3195,
DFID,CSC,25/09/2017,Scholar Allowances,Award Costs,Mastercard Prepaid Management Services Ltd,PIN029451,414,
DFID,CSC,25/09/2017,Scholar Stipend,Award Costs,Mastercard Prepaid Management Services Ltd,PIN029451,3649.87,
DFID,CSC,25/09/2017,Scholar Allowances,Award Costs,Mastercard Prepaid Management Services Ltd,PIN029451,414,
DFID,CSC,25/09/2017,Scholar Stipend,Award Costs,Mastercard Prepaid Management Services Ltd,PIN029451,3899.3,
DFID,CSC,25/09/2017,Scholar Allowances,Award Costs,Mastercard Prepaid Management Services Ltd,PIN029451,414,
DFID,CSC,25/09/2017,Scholar Stipend,Award Costs,Mastercard Prepaid Management Services Ltd,PIN029451,3369.95,
DFID,CSC,25/09/2017,Scholar Allowances,Award Costs,Mastercard Prepaid Management Services Ltd,PIN029451,414,
DFID,CSC,25/09/2017,Scholar Stipend,Award Costs,Mastercard Prepaid Management Services Ltd,PIN029451,4347.1,
DFID,CSC,25/09/2017,Scholar Allowances,Award Costs,Mastercard Prepaid Management Services Ltd,PIN029451,414,
DFID,CSC,25/09/2017,Scholar Stipend,Award Costs,Mastercard Prepaid Management Services Ltd,PIN029451,3404.94,
DFID,CSC,25/09/2017,Visa Costs,Award Costs,Mastercard Prepaid Management Services Ltd,PIN029451,235,
DFID,CSC,25/09/2017,Scholar Allowances,Award Costs,Mastercard Prepaid Management Services Ltd,PIN029451,559.9,
DFID,CSC,25/09/2017,Scholar Stipend,Award Costs,Mastercard Prepaid Management Services Ltd,PIN029451,1728.2,
DFID,CSC,25/09/2017,Visa Costs,Award Costs,Mastercard Prepaid Management Services Ltd,PIN029451,235,
DFID,CSC,25/09/2017,Scholar Allowances,Award Costs,Mastercard Prepaid Management Services Ltd,PIN029451,447.92,
DFID,CSC,25/09/2017,Scholar Stipend,Award Costs,Mastercard Prepaid Management Services Ltd,PIN029451,1518.72,
DFID,CSC,25/09/2017,Visa Costs,Award Costs,Mastercard Prepaid Management Services Ltd,PIN029451,235,
DFID,CSC,25/09/2017,Visa Costs,Award Costs,Mastercard Prepaid Management Services Ltd,PIN029451,235,
DFID,CSC,25/09/2017,Scholar Allowances,Award Costs,Mastercard Prepaid Management Services Ltd,PIN029451,895.83,
DFID,CSC,25/09/2017,Scholar Stipend,Award Costs,Mastercard Prepaid Management Services Ltd,PIN029451,5975.66,
DFID,CSC,25/09/2017,Visa Costs,Award Costs,Mastercard Prepaid Management Services Ltd,PIN029451,235,
DFID,CSC,25/09/2017,Scholar Allowances,Award Costs,Mastercard Prepaid Management Services Ltd,PIN029451,895.83,
DFID,CSC,25/09/2017,Scholar Stipend,Award Costs,Mastercard Prepaid Management Services Ltd,PIN029451,3351.66,
DFID,CSC,25/09/2017,Scholar Stipend,Award Costs,Mastercard Prepaid Management Services Ltd,PIN029451,3299.29,
DFID,CSC,25/09/2017,Scholar Allowances,Award Costs,Mastercard Prepaid Management Services Ltd,PIN029451,895.83,
DFID,CSC,26/09/2017,Bank Charges,Award Costs,Mastercard Prepaid Management Services Ltd,PIN029452,403.45,
DFID,CSC,26/09/2017,Scholar Allowances,Award Costs,Mastercard Prepaid Management Services Ltd,PIN029452,414,
DFID,CSC,26/09/2017,Scholar Stipend,Award Costs,Mastercard Prepaid Management Services Ltd,PIN029452,3195,
DFID,CSC,26/09/2017,Scholar Allowances,Award Costs,Mastercard Prepaid Management Services Ltd,PIN029452,414,
DFID,CSC,26/09/2017,Scholar Stipend,Award Costs,Mastercard Prepaid Management Services Ltd,PIN029452,3404.94,
DFID,CSC,26/09/2017,Scholar Allowances,Award Costs,Mastercard Prepaid Management Services Ltd,PIN029452,414,
DFID,CSC,26/09/2017,Scholar Stipend,Award Costs,Mastercard Prepaid Management Services Ltd,PIN029452,3179.7,
DFID,CSC,26/09/2017,Scholar Allowances,Award Costs,Mastercard Prepaid Management Services Ltd,PIN029452,414,
DFID,CSC,26/09/2017,Scholar Stipend,Award Costs,Mastercard Prepaid Management Services Ltd,PIN029452,3195,
DFID,CSC,26/09/2017,Scholar Allowances,Award Costs,Mastercard Prepaid Management Services Ltd,PIN029452,414,
DFID,CSC,26/09/2017,Scholar Stipend,Award Costs,Mastercard Prepaid Management Services Ltd,PIN029452,3404.94,
DFID,CSC,26/09/2017,Scholar Allowances,Award Costs,Mastercard Prepaid Management Services Ltd,PIN029452,414,
DFID,CSC,26/09/2017,Scholar Stipend,Award Costs,Mastercard Prepaid Management Services Ltd,PIN029452,3074.73,
DFID,CSC,26/09/2017,Scholar Allowances,Award Costs,Mastercard Prepaid Management Services Ltd,PIN029452,414,
DFID,CSC,26/09/2017,Scholar Stipend,Award Costs,Mastercard Prepaid Management Services Ltd,PIN029452,3195,
DFID,CSC,26/09/2017,Scholar Allowances,Award Costs,Mastercard Prepaid Management Services Ltd,PIN029452,414,
DFID,CSC,26/09/2017,Scholar Stipend,Award Costs,Mastercard Prepaid Management Services Ltd,PIN029452,3229.99,
DFID,CSC,26/09/2017,Scholar Allowances,Award Costs,Mastercard Prepaid Management Services Ltd,PIN029452,414,
DFID,CSC,26/09/2017,Scholar Stipend,Award Costs,Mastercard Prepaid Management Services Ltd,PIN029452,4132.55,
DFID,CSC,26/09/2017,Visa Costs,Award Costs,Mastercard Prepaid Management Services Ltd,PIN029452,235,
DFID,CSC,26/09/2017,Scholar Allowances,Award Costs,Mastercard Prepaid Management Services Ltd,PIN029452,447.92,
DFID,CSC,26/09/2017,Scholar Stipend,Award Costs,Mastercard Prepaid Management Services Ltd,PIN029452,1518.72,
DFID,CSC,26/09/2017,Visa Costs,Award Costs,Mastercard Prepaid Management Services Ltd,PIN029452,235,
DFID,CSC,26/09/2017,Scholar Stipend,Award Costs,Mastercard Prepaid Management Services Ltd,PIN029452,1518.72,
DFID,CSC,26/09/2017,Visa Costs,Award Costs,Mastercard Prepaid Management Services Ltd,PIN029452,235,
DFID,CSC,26/09/2017,Scholar Allowances,Award Costs,Mastercard Prepaid Management Services Ltd,PIN029452,447.92,
DFID,CSC,26/09/2017,Scholar Stipend,Award Costs,Mastercard Prepaid Management Services Ltd,PIN029452,1518.72,
DFID,CSC,26/09/2017,Scholar Allowances,Award Costs,Mastercard Prepaid Management Services Ltd,PIN029452,447.92,
DFID,CSC,26/09/2017,Bank Charges,Award Costs,Mastercard Prepaid Management Services Ltd,PIN029456,721.43,
DFID,CSC,26/09/2017,Scholar Allowances,Award Costs,Mastercard Prepaid Management Services Ltd,PIN029456,414,
DFID,CSC,26/09/2017,Scholar Allowances,Award Costs,Mastercard Prepaid Management Services Ltd,PIN029456,414,
DFID,CSC,26/09/2017,Scholar Stipend,Award Costs,Mastercard Prepaid Management Services Ltd,PIN029456,3894.8,
DFID,CSC,26/09/2017,Scholar Allowances,Award Costs,Mastercard Prepaid Management Services Ltd,PIN029456,414,
DFID,CSC,26/09/2017,Scholar Stipend,Award Costs,Mastercard Prepaid Management Services Ltd,PIN029456,3960.91,
DFID,CSC,26/09/2017,Scholar Allowances,Award Costs,Mastercard Prepaid Management Services Ltd,PIN029456,414,
DFID,CSC,26/09/2017,Scholar Stipend,Award Costs,Mastercard Prepaid Management Services Ltd,PIN029456,4347.1,
DFID,CSC,26/09/2017,Scholar Allowances,Award Costs,Mastercard Prepaid Management Services Ltd,PIN029456,414,
DFID,CSC,26/09/2017,Scholar Stipend,Award Costs,Mastercard Prepaid Management Services Ltd,PIN029456,3754.84,
DFID,CSC,26/09/2017,Scholar Allowances,Award Costs,Mastercard Prepaid Management Services Ltd,PIN029456,414,
DFID,CSC,26/09/2017,Scholar Stipend,Award Costs,Mastercard Prepaid Management Services Ltd,PIN029456,3649.87,
DFID,CSC,26/09/2017,Scholar Allowances,Award Costs,Mastercard Prepaid Management Services Ltd,PIN029456,414,
DFID,CSC,26/09/2017,Scholar Stipend,Award Costs,Mastercard Prepaid Management Services Ltd,PIN029456,3195,
DFID,CSC,26/09/2017,Scholar Allowances,Award Costs,Mastercard Prepaid Management Services Ltd,PIN029456,100,
DFID,CSC,26/09/2017,Scholar Allowances,Award Costs,Mastercard Prepaid Management Services Ltd,PIN029456,914.64,
DFID,CSC,26/09/2017,Scholar Stipend,Award Costs,Mastercard Prepaid Management Services Ltd,PIN029456,4881,
DFID,CSC,26/09/2017,Scholar Allowances,Award Costs,Mastercard Prepaid Management Services Ltd,PIN029456,414,
DFID,CSC,26/09/2017,Scholar Stipend,Award Costs,Mastercard Prepaid Management Services Ltd,PIN029456,3719.85,
DFID,CSC,26/09/2017,Scholar Allowances,Award Costs,Mastercard Prepaid Management Services Ltd,PIN029456,414,
DFID,CSC,26/09/2017,Scholar Stipend,Award Costs,Mastercard Prepaid Management Services Ltd,PIN029456,3404.94,
DFID,CSC,26/09/2017,Scholar Allowances,Award Costs,Mastercard Prepaid Management Services Ltd,PIN029456,414,
DFID,CSC,26/09/2017,Scholar Stipend,Award Costs,Mastercard Prepaid Management Services Ltd,PIN029456,3719.85,
DFID,CSC,26/09/2017,Scholar Allowances,Award Costs,Mastercard Prepaid Management Services Ltd,PIN029456,414,
DFID,CSC,26/09/2017,Scholar Stipend,Award Costs,Mastercard Prepaid Management Services Ltd,PIN029456,3649.87,
DFID,CSC,26/09/2017,Scholar Allowances,Award Costs,Mastercard Prepaid Management Services Ltd,PIN029456,414,
DFID,CSC,26/09/2017,Scholar Stipend,Award Costs,Mastercard Prepaid Management Services Ltd,PIN029456,4175.46,
DFID,CSC,26/09/2017,Scholar Allowances,Award Costs,Mastercard Prepaid Management Services Ltd,PIN029456,414,
DFID,CSC,26/09/2017,Scholar Allowances,Award Costs,Mastercard Prepaid Management Services Ltd,PIN029456,414,
DFID,CSC,26/09/2017,Scholar Stipend,Award Costs,Mastercard Prepaid Management Services Ltd,PIN029456,3195,
DFID,CSC,26/09/2017,Scholar Allowances,Award Costs,Mastercard Prepaid Management Services Ltd,PIN029456,414,
DFID,CSC,26/09/2017,Scholar Stipend,Award Costs,Mastercard Prepaid Management Services Ltd,PIN029456,4390.01,
DFID,CSC,26/09/2017,Scholar Allowances,Award Costs,Mastercard Prepaid Management Services Ltd,PIN029456,414,
DFID,CSC,26/09/2017,Scholar Stipend,Award Costs,Mastercard Prepaid Management Services Ltd,PIN029456,3614.88,
DFID,CSC,26/09/2017,Scholar Stipend,Award Costs,Mastercard Prepaid Management Services Ltd,PIN029456,3195,
DFID,CSC,26/09/2017,Scholar Stipend,Award Costs,Mastercard Prepaid Management Services Ltd,PIN029456,3754.84,
DFID,CSC,27/09/2017,Bank Charges,Award Costs,Mastercard Prepaid Management Services Ltd,PIN029453,378.88,
DFID,CSC,27/09/2017,Scholar Allowances,Award Costs,Mastercard Prepaid Management Services Ltd,PIN029453,414,
DFID,CSC,27/09/2017,Scholar Stipend,Award Costs,Mastercard Prepaid Management Services Ltd,PIN029453,3195,
DFID,CSC,27/09/2017,Scholar Allowances,Award Costs,Mastercard Prepaid Management Services Ltd,PIN029453,414,
DFID,CSC,27/09/2017,Scholar Stipend,Award Costs,Mastercard Prepaid Management Services Ltd,PIN029453,3404.94,
DFID,CSC,27/09/2017,Scholar Allowances,Award Costs,Mastercard Prepaid Management Services Ltd,PIN029453,414,
DFID,CSC,27/09/2017,Scholar Stipend,Award Costs,Mastercard Prepaid Management Services Ltd,PIN029453,3439.93,
DFID,CSC,27/09/2017,Scholar Allowances,Award Costs,Mastercard Prepaid Management Services Ltd,PIN029453,414,
DFID,CSC,27/09/2017,Scholar Stipend,Award Costs,Mastercard Prepaid Management Services Ltd,PIN029453,3918,
DFID,CSC,27/09/2017,Scholar Allowances,Award Costs,Mastercard Prepaid Management Services Ltd,PIN029453,414,
DFID,CSC,27/09/2017,Scholar Stipend,Award Costs,Mastercard Prepaid Management Services Ltd,PIN029453,4175.46,
DFID,CSC,27/09/2017,Scholar Allowances,Award Costs,Mastercard Prepaid Management Services Ltd,PIN029453,414,
DFID,CSC,27/09/2017,Scholar Stipend,Award Costs,Mastercard Prepaid Management Services Ltd,PIN029453,4261.28,
DFID,CSC,27/09/2017,Scholar Allowances,Award Costs,Mastercard Prepaid Management Services Ltd,PIN029453,414,
DFID,CSC,27/09/2017,Scholar Stipend,Award Costs,Mastercard Prepaid Management Services Ltd,PIN029453,3195,
DFID,CSC,27/09/2017,Visa Costs,Award Costs,Mastercard Prepaid Management Services Ltd,PIN029453,235,
DFID,CSC,27/09/2017,Scholar Allowances,Award Costs,Mastercard Prepaid Management Services Ltd,PIN029453,895.83,
DFID,CSC,27/09/2017,Scholar Stipend,Award Costs,Mastercard Prepaid Management Services Ltd,PIN029453,4660.9,
DFID,CSC,27/09/2017,Scholar Stipend,Award Costs,Mastercard Prepaid Management Services Ltd,PIN029453,3195,
DFID,CSC,27/09/2017,Scholar Allowances,Award Costs,Mastercard Prepaid Management Services Ltd,PIN029453,414,
DFID,CSC,28/09/2017,Scholar Stipend,Award Costs,Scholar,PIN028792,3195,
DFID,CSC,28/09/2017,Scholar Stipend,Award Costs,Scholar,PIN028793,1065,
DFID,CSC,28/09/2017,Scholar Stipend,Award Costs,Scholar,PIN028794,3918,
DFID,CSC,28/09/2017,Scholar Stipend,Award Costs,Scholar,PIN028795,1597.5,
DFID,CSC,28/09/2017,Scholar Stipend,Award Costs,Scholar,PIN028796,1597.5,
DFID,CSC,28/09/2017,Scholar Stipend,Award Costs,Scholar,PIN028797,1597.5,
DFID,CSC,28/09/2017,Scholar Stipend,Award Costs,Scholar,PIN028798,3195,
DFID,CSC,28/09/2017,Scholar Stipend,Award Costs,Scholar,PIN028799,3195,
DFID,CSC,28/09/2017,Scholar Stipend,Award Costs,Scholar,PIN028800,3195,
DFID,CSC,28/09/2017,Scholar Stipend,Award Costs,Scholar,PIN028801,3195,
DFID,CSC,28/09/2017,Scholar Stipend,Award Costs,Scholar,PIN028802,3195,
DFID,CSC,28/09/2017,Scholar Stipend,Award Costs,Scholar,PIN028803,3195,
DFID,CSC,28/09/2017,Scholar Stipend,Award Costs,Scholar,PIN028804,3195,
DFID,CSC,28/09/2017,Scholar Stipend,Award Costs,Scholar,PIN028805,1443.25,
DFID,CSC,28/09/2017,Scholar Stipend,Award Costs,Scholar,PIN028806,1959,
DFID,CSC,28/09/2017,Scholar Stipend,Award Costs,Scholar,PIN028807,532.5,
DFID,CSC,28/09/2017,Scholar Stipend,Award Costs,Scholar,PIN028808,3195,
DFID,CSC,28/09/2017,Scholar Stipend,Award Costs,Scholar,PIN028809,1842.43,
DFID,CSC,28/09/2017,Scholar Stipend,Award Costs,Scholar,PIN028810,1169.97,
DFID,CSC,28/09/2017,Scholar Stipend,Award Costs,Scholar,PIN028811,1597.5,
DFID,CSC,28/09/2017,Scholar Stipend,Award Costs,Scholar,PIN028812,3195,
DFID,CSC,28/09/2017,Scholar Stipend,Award Costs,Scholar,PIN028813,3195,
DFID,CSC,28/09/2017,Scholar Stipend,Award Costs,Scholar,PIN028814,3918,
DFID,CSC,28/09/2017,Scholar Stipend,Award Costs,Scholar,PIN028815,3195,
DFID,CSC,28/09/2017,Scholar Stipend,Award Costs,Scholar,PIN028816,3918,
DFID,CSC,28/09/2017,Scholar Stipend,Award Costs,Scholar,PIN028817,3195,
DFID,CSC,28/09/2017,Scholar Stipend,Award Costs,Scholar,PIN028818,3195,
DFID,CSC,28/09/2017,Scholar Stipend,Award Costs,Scholar,PIN028819,3195,
DFID,CSC,28/09/2017,Scholar Stipend,Award Costs,Scholar,PIN028820,3833.96,
DFID,CSC,28/09/2017,Scholar Stipend,Award Costs,Scholar,PIN028821,3195,
DFID,CSC,28/09/2017,Scholar Stipend,Award Costs,Scholar,PIN028822,3195,
DFID,CSC,28/09/2017,Scholar Stipend,Award Costs,Scholar,PIN028823,3918,
DFID,CSC,28/09/2017,Scholar Stipend,Award Costs,Scholar,PIN028824,3195,
DFID,CSC,28/09/2017,Scholar Stipend,Award Costs,Scholar,PIN028825,3918,
DFID,CSC,28/09/2017,Scholar Stipend,Award Costs,Scholar,PIN028826,3195,
DFID,CSC,28/09/2017,Scholar Stipend,Award Costs,Scholar,PIN028827,3195,
DFID,CSC,28/09/2017,Scholar Stipend,Award Costs,Scholar,PIN028828,3195,
DFID,CSC,28/09/2017,Scholar Stipend,Award Costs,Scholar,PIN028829,3918,
DFID,CSC,28/09/2017,Scholar Stipend,Award Costs,Scholar,PIN028830,3195,
DFID,CSC,28/09/2017,Scholar Stipend,Award Costs,Scholar,PIN028831,3195,
DFID,CSC,28/09/2017,Scholar Stipend,Award Costs,Scholar,PIN028832,3918,
DFID,CSC,28/09/2017,Scholar Stipend,Award Costs,Scholar,PIN028833,3195,
DFID,CSC,28/09/2017,Scholar Stipend,Award Costs,Scholar,PIN028834,3918,
DFID,CSC,28/09/2017,Scholar Stipend,Award Costs,Scholar,PIN028835,3195,
DFID,CSC,28/09/2017,Scholar Stipend,Award Costs,Scholar,PIN028836,3918,
DFID,CSC,28/09/2017,Scholar Stipend,Award Costs,Scholar,PIN028837,3195,
DFID,CSC,28/09/2017,Scholar Stipend,Award Costs,Scholar,PIN028838,1974.73,
DFID,CSC,28/09/2017,Scholar Stipend,Award Costs,Scholar,PIN028839,1597.5,
DFID,CSC,28/09/2017,Scholar Stipend,Award Costs,Scholar,PIN028840,3195,
DFID,CSC,28/09/2017,Scholar Stipend,Award Costs,Scholar,PIN028841,3195,
DFID,CSC,28/09/2017,Scholar Stipend,Award Costs,Scholar,PIN028842,1597.5,
DFID,CSC,28/09/2017,Scholar Stipend,Award Costs,Scholar,PIN028843,1597.5,
DFID,CSC,28/09/2017,Scholar Stipend,Award Costs,Scholar,PIN028844,1597.5,
DFID,CSC,28/09/2017,Scholar Stipend,Award Costs,Scholar,PIN028845,2044.71,
DFID,CSC,28/09/2017,Scholar Stipend,Award Costs,Scholar,PIN028846,2864.48,
DFID,CSC,28/09/2017,Scholar Stipend,Award Costs,Scholar,PIN028847,3195,
DFID,CSC,28/09/2017,Scholar Stipend,Award Costs,Scholar,PIN028848,1597.5,
DFID,CSC,28/09/2017,Scholar Stipend,Award Costs,Scholar,PIN028849,1959,
DFID,CSC,28/09/2017,Scholar Stipend,Award Costs,Scholar,PIN028850,3195,
DFID,CSC,28/09/2017,Scholar Stipend,Award Costs,Scholar,PIN028851,3195,
DFID,CSC,28/09/2017,Scholar Stipend,Award Costs,Scholar,PIN028852,3195,
DFID,CSC,28/09/2017,Scholar Stipend,Award Costs,Scholar,PIN028853,1597.5,
DFID,CSC,28/09/2017,Scholar Stipend,Award Costs,Scholar,PIN028854,3195,
DFID,CSC,28/09/2017,Scholar Stipend,Award Costs,Scholar,PIN028855,3195,
DFID,CSC,28/09/2017,Scholar Stipend,Award Costs,Scholar,PIN028856,3195,
DFID,CSC,28/09/2017,Scholar Stipend,Award Costs,Scholar,PIN028857,1597.5,
DFID,CSC,28/09/2017,Scholar Stipend,Award Costs,Scholar,PIN028858,3195,
DFID,CSC,28/09/2017,Scholar Stipend,Award Costs,Scholar,PIN028859,3195,
DFID,CSC,28/09/2017,Scholar Stipend,Award Costs,Scholar,PIN028860,3195,
DFID,CSC,28/09/2017,Scholar Stipend,Award Costs,Scholar,PIN028861,2079.69,
DFID,CSC,28/09/2017,Scholar Stipend,Award Costs,Scholar,PIN028862,3195,
DFID,CSC,28/09/2017,Scholar Stipend,Award Costs,Scholar,PIN028863,1554.86,
DFID,CSC,28/09/2017,Scholar Stipend,Award Costs,Scholar,PIN028864,2130,
DFID,CSC,28/09/2017,Scholar Stipend,Award Costs,Scholar,PIN028865,3195,
DFID,CSC,28/09/2017,Scholar Stipend,Award Costs,Scholar,PIN028866,3195,
DFID,CSC,28/09/2017,Scholar Stipend,Award Costs,Scholar,PIN028867,3195,
DFID,CSC,28/09/2017,Scholar Stipend,Award Costs,Scholar,PIN028868,3195,
DFID,CSC,28/09/2017,Scholar Stipend,Award Costs,Scholar,PIN028869,3918,
DFID,CSC,28/09/2017,Scholar Stipend,Award Costs,Scholar,PIN028870,1764.79,
DFID,CSC,28/09/2017,Scholar Stipend,Award Costs,Scholar,PIN028871,1065,
DFID,CSC,28/09/2017,Scholar Stipend,Award Costs,Scholar,PIN028872,2130,
DFID,CSC,28/09/2017,Scholar Stipend,Award Costs,Scholar,PIN028873,979.71,
DFID,CSC,28/09/2017,Scholar Stipend,Award Costs,Scholar,PIN028875,3195,
DFID,CSC,28/09/2017,Scholar Stipend,Award Costs,Scholar,PIN028876,1597.5,
DFID,CSC,28/09/2017,Scholar Stipend,Award Costs,Scholar,PIN028877,1959,
DFID,CSC,28/09/2017,Scholar Stipend,Award Costs,Scholar,PIN028878,1694.82,
DFID,CSC,28/09/2017,Scholar Stipend,Award Costs,Scholar,PIN028879,2378.69,
DFID,CSC,28/09/2017,Scholar Stipend,Award Costs,Scholar,PIN028880,1597.5,
DFID,CSC,28/09/2017,Scholar Stipend,Award Costs,Scholar,PIN028881,2339.54,
DFID,CSC,28/09/2017,Scholar Stipend,Award Costs,Scholar,PIN028882,3195,
DFID,CSC,28/09/2017,Scholar Stipend,Award Costs,Scholar,PIN028883,3195,
DFID,CSC,28/09/2017,Scholar Stipend,Award Costs,Scholar,PIN028884,3195,
DFID,CSC,28/09/2017,Scholar Stipend,Award Costs,Scholar,PIN028885,3195,
DFID,CSC,28/09/2017,Scholar Stipend,Award Costs,Scholar,PIN028886,3195,
DFID,CSC,28/09/2017,Scholar Stipend,Award Costs,Scholar,PIN028887,2864.78,
DFID,CSC,28/09/2017,Scholar Stipend,Award Costs,Scholar,PIN028888,3195,
DFID,CSC,28/09/2017,Scholar Stipend,Award Costs,Scholar,PIN028889,3195,
DFID,CSC,28/09/2017,Scholar Stipend,Award Costs,Scholar,PIN028890,3195,
DFID,CSC,28/09/2017,Scholar Stipend,Award Costs,Scholar,PIN028891,3780.94,
DFID,CSC,28/09/2017,Scholar Stipend,Award Costs,Scholar,PIN028892,3195,
DFID,CSC,28/09/2017,Scholar Stipend,Award Costs,Scholar,PIN028893,3195,
DFID,CSC,28/09/2017,Scholar Stipend,Award Costs,Scholar,PIN028894,3918,
DFID,CSC,28/09/2017,Scholar Stipend,Award Costs,Scholar,PIN028895,3195,
DFID,CSC,28/09/2017,Scholar Stipend,Award Costs,Scholar,PIN028896,3195,
DFID,CSC,28/09/2017,Scholar Stipend,Award Costs,Scholar,PIN028897,3195,
DFID,CSC,28/09/2017,Scholar Stipend,Award Costs,Scholar,PIN028898,3195,
DFID,CSC,28/09/2017,Scholar Stipend,Award Costs,Scholar,PIN028899,3195,
DFID,CSC,28/09/2017,Scholar Stipend,Award Costs,Scholar,PIN028900,3195,
DFID,CSC,28/09/2017,Scholar Stipend,Award Costs,Scholar,PIN028901,1597.5,
DFID,CSC,28/09/2017,Scholar Stipend,Award Costs,Scholar,PIN028902,3195,
DFID,CSC,28/09/2017,Scholar Stipend,Award Costs,Scholar,PIN028903,3918,
DFID,CSC,28/09/2017,Scholar Stipend,Award Costs,Scholar,PIN028904,3195,
DFID,CSC,28/09/2017,Scholar Stipend,Award Costs,Scholar,PIN028905,1065,
DFID,CSC,28/09/2017,Scholar Stipend,Award Costs,Scholar,PIN028906,3195,
DFID,CSC,28/09/2017,Scholar Stipend,Award Costs,Scholar,PIN028907,3195,
DFID,CSC,28/09/2017,Scholar Stipend,Award Costs,Scholar,PIN028908,3195,
DFID,CSC,28/09/2017,Scholar Stipend,Award Costs,Scholar,PIN028909,1729.8,
DFID,CSC,28/09/2017,Scholar Stipend,Award Costs,Scholar,PIN028910,1624.84,
DFID,CSC,28/09/2017,Scholar Stipend,Award Costs,Scholar,PIN028911,1597.5,
DFID,CSC,28/09/2017,Scholar Stipend,Award Costs,Scholar,PIN028912,1449.89,
DFID,CSC,28/09/2017,Scholar Stipend,Award Costs,Scholar,PIN028913,1065,
DFID,CSC,28/09/2017,Scholar Stipend,Award Costs,Scholar,PIN028914,3195,
DFID,CSC,28/09/2017,Scholar Stipend,Award Costs,Scholar,PIN028915,3195,
DFID,CSC,28/09/2017,Scholar Stipend,Award Costs,Scholar,PIN028916,3195,
DFID,CSC,28/09/2017,Scholar Stipend,Award Costs,Scholar,PIN028917,3195,
DFID,CSC,28/09/2017,Scholar Stipend,Award Costs,Scholar,PIN028918,3918,
DFID,CSC,28/09/2017,Scholar Stipend,Award Costs,Scholar,PIN028919,3195,
DFID,CSC,28/09/2017,Scholar Stipend,Award Costs,Scholar,PIN028920,3195,
DFID,CSC,28/09/2017,Scholar Stipend,Award Costs,Scholar,PIN028921,3195,
DFID,CSC,28/09/2017,Scholar Stipend,Award Costs,Scholar,PIN028922,3195,
DFID,CSC,28/09/2017,Scholar Stipend,Award Costs,Scholar,PIN028923,3918,
DFID,CSC,28/09/2017,Scholar Stipend,Award Costs,Scholar,PIN028924,3195,
DFID,CSC,28/09/2017,Scholar Stipend,Award Costs,Scholar,PIN028925,3195,
DFID,CSC,28/09/2017,Scholar Stipend,Award Costs,Scholar,PIN028926,3195,
DFID,CSC,28/09/2017,Scholar Stipend,Award Costs,Scholar,PIN028927,2130,
DFID,CSC,28/09/2017,Scholar Stipend,Award Costs,Scholar,PIN028928,1597.5,
DFID,CSC,28/09/2017,Scholar Stipend,Award Costs,Scholar,PIN028929,3195,
DFID,CSC,28/09/2017,Scholar Stipend,Award Costs,Scholar,PIN028930,3317.6,
DFID,CSC,28/09/2017,Scholar Stipend,Award Costs,Scholar,PIN028931,3195,
DFID,CSC,28/09/2017,Scholar Stipend,Award Costs,Scholar,PIN028932,3918,
DFID,CSC,28/09/2017,Scholar Stipend,Award Costs,Scholar,PIN028933,3195,
DFID,CSC,28/09/2017,Scholar Stipend,Award Costs,Scholar,PIN028934,3918,
DFID,CSC,28/09/2017,Scholar Stipend,Award Costs,Scholar,PIN028935,3195,
DFID,CSC,28/09/2017,Scholar Stipend,Award Costs,Scholar,PIN028936,3195,
DFID,CSC,28/09/2017,Scholar Stipend,Award Costs,Scholar,PIN028937,3195,
DFID,CSC,28/09/2017,Scholar Stipend,Award Costs,Scholar,PIN028938,1344.92,
DFID,CSC,28/09/2017,Scholar Stipend,Award Costs,Scholar,PIN028939,1597.5,
DFID,CSC,28/09/2017,Scholar Stipend,Award Costs,Scholar,PIN028940,3195,
DFID,CSC,28/09/2017,Scholar Stipend,Award Costs,Scholar,PIN028941,3195,
DFID,CSC,28/09/2017,Scholar Stipend,Award Costs,Scholar,PIN028942,3918,
DFID,CSC,28/09/2017,Scholar Stipend,Award Costs,Scholar,PIN028943,3195,
DFID,CSC,28/09/2017,Scholar Stipend,Award Costs,Scholar,PIN028944,3195,
DFID,CSC,28/09/2017,Scholar Stipend,Award Costs,Scholar,PIN028945,3195,
DFID,CSC,28/09/2017,Scholar Stipend,Award Costs,Scholar,PIN028946,3195,
DFID,CSC,28/09/2017,Scholar Stipend,Award Costs,Scholar,PIN028947,3195,
DFID,CSC,28/09/2017,Scholar Stipend,Award Costs,Scholar,PIN028948,1344.92,
DFID,CSC,28/09/2017,Scholar Stipend,Award Costs,Scholar,PIN028949,3195,
DFID,CSC,28/09/2017,Scholar Stipend,Award Costs,Scholar,PIN028950,1065,
DFID,CSC,28/09/2017,Scholar Stipend,Award Costs,Scholar,PIN028951,3195,
DFID,CSC,28/09/2017,Scholar Stipend,Award Costs,Scholar,PIN028952,2869.45,
DFID,CSC,28/09/2017,Scholar Stipend,Award Costs,Scholar,PIN028953,1597.5,
DFID,CSC,28/09/2017,Scholar Stipend,Award Costs,Scholar,PIN028954,1597.5,
DFID,CSC,28/09/2017,Scholar Stipend,Award Costs,Scholar,PIN028955,1597.5,
DFID,CSC,28/09/2017,Scholar Stipend,Award Costs,Scholar,PIN028956,1597.5,
DFID,CSC,28/09/2017,Scholar Stipend,Award Costs,Scholar,PIN028957,3195,
DFID,CSC,28/09/2017,Scholar Stipend,Award Costs,Scholar,PIN028958,3195,
DFID,CSC,28/09/2017,Scholar Stipend,Award Costs,Scholar,PIN028959,3195,
DFID,CSC,28/09/2017,Scholar Stipend,Award Costs,Scholar,PIN028960,3195,
DFID,CSC,28/09/2017,Scholar Stipend,Award Costs,Scholar,PIN028961,3195,
DFID,CSC,28/09/2017,Scholar Stipend,Award Costs,Scholar,PIN028962,3195,
DFID,CSC,28/09/2017,Scholar Stipend,Award Costs,Scholar,PIN028963,3195,
DFID,CSC,28/09/2017,Scholar Stipend,Award Costs,Scholar,PIN028964,3195,
DFID,CSC,28/09/2017,Scholar Stipend,Award Costs,Scholar,PIN028965,3195,
DFID,CSC,28/09/2017,Scholar Stipend,Award Costs,Scholar,PIN028966,3918,
DFID,CSC,28/09/2017,Scholar Stipend,Award Costs,Scholar,PIN028967,3195,
DFID,CSC,28/09/2017,Scholar Stipend,Award Costs,Scholar,PIN028968,3918,
DFID,CSC,28/09/2017,Scholar Stipend,Award Costs,Scholar,PIN028969,3195,
DFID,CSC,28/09/2017,Scholar Stipend,Award Costs,Scholar,PIN028970,3195,
DFID,CSC,28/09/2017,Scholar Stipend,Award Costs,Scholar,PIN028971,1606.35,
DFID,CSC,28/09/2017,Scholar Stipend,Award Costs,Scholar,PIN028972,3195,
DFID,CSC,28/09/2017,Scholar Stipend,Award Costs,Scholar,PIN028973,3195,
DFID,CSC,28/09/2017,Scholar Stipend,Award Costs,Scholar,PIN028974,3195,
DFID,CSC,28/09/2017,Scholar Stipend,Award Costs,Scholar,PIN028975,1702.47,
DFID,CSC,28/09/2017,Scholar Stipend,Award Costs,Scholar,PIN028976,3195,
DFID,CSC,28/09/2017,Scholar Stipend,Award Costs,Scholar,PIN028977,3195,
DFID,CSC,28/09/2017,Scholar Stipend,Award Costs,Scholar,PIN028978,1842.43,
DFID,CSC,28/09/2017,Scholar Stipend,Award Costs,Scholar,PIN028979,1982.39,
DFID,CSC,28/09/2017,Scholar Stipend,Award Costs,Scholar,PIN028980,1597.5,
DFID,CSC,28/09/2017,Scholar Stipend,Award Costs,Scholar,PIN028981,2149.67,
DFID,CSC,28/09/2017,Scholar Stipend,Award Costs,Scholar,PIN028982,3918,
DFID,CSC,28/09/2017,Scholar Stipend,Award Costs,Scholar,PIN028983,3195,
DFID,CSC,28/09/2017,Scholar Stipend,Award Costs,Scholar,PIN028984,3195,
DFID,CSC,28/09/2017,Scholar Stipend,Award Costs,Scholar,PIN028985,3195,
DFID,CSC,28/09/2017,Scholar Stipend,Award Costs,Scholar,PIN028986,3195,
DFID,CSC,28/09/2017,Scholar Stipend,Award Costs,Scholar,PIN028987,3195,
DFID,CSC,28/09/2017,Scholar Stipend,Award Costs,Scholar,PIN028988,3195,
DFID,CSC,28/09/2017,Scholar Stipend,Award Costs,Scholar,PIN028989,3195,
DFID,CSC,28/09/2017,Scholar Stipend,Award Costs,Scholar,PIN028990,3195,
DFID,CSC,28/09/2017,Scholar Stipend,Award Costs,Scholar,PIN028991,2001.18,
DFID,CSC,28/09/2017,Scholar Stipend,Award Costs,Scholar,PIN028992,3918,
DFID,CSC,28/09/2017,Scholar Stipend,Award Costs,Scholar,PIN028993,1065,
DFID,CSC,28/09/2017,Scholar Stipend,Award Costs,Scholar,PIN028994,3195,
DFID,CSC,28/09/2017,Scholar Stipend,Award Costs,Scholar,PIN028995,1597.5,
DFID,CSC,28/09/2017,Scholar Stipend,Award Costs,Scholar,PIN028996,1597.5,
DFID,CSC,28/09/2017,Scholar Stipend,Award Costs,Scholar,PIN028998,1982.38,
DFID,CSC,28/09/2017,Scholar Stipend,Award Costs,Scholar,PIN028999,1597.5,
DFID,CSC,28/09/2017,Scholar Stipend,Award Costs,Scholar,PIN029000,3195,
DFID,CSC,28/09/2017,Scholar Stipend,Award Costs,Scholar,PIN029001,1065,
DFID,CSC,28/09/2017,Scholar Stipend,Award Costs,Scholar,PIN029002,3195,
DFID,CSC,28/09/2017,Scholar Stipend,Award Costs,Scholar,PIN029003,3195,
DFID,CSC,28/09/2017,Scholar Stipend,Award Costs,Scholar,PIN029004,1694.82,
DFID,CSC,28/09/2017,Scholar Stipend,Award Costs,Scholar,PIN029005,3195,
DFID,CSC,28/09/2017,Scholar Stipend,Award Costs,Scholar,PIN029006,3195,
DFID,CSC,28/09/2017,Scholar Stipend,Award Costs,Scholar,PIN029007,3195,
DFID,CSC,28/09/2017,Scholar Stipend,Award Costs,Scholar,PIN029008,3195,
DFID,CSC,28/09/2017,Scholar Stipend,Award Costs,Scholar,PIN029009,3195,
DFID,CSC,28/09/2017,Scholar Stipend,Award Costs,Scholar,PIN029010,3195,
DFID,CSC,28/09/2017,Scholar Stipend,Award Costs,Scholar,PIN029011,3195,
DFID,CSC,28/09/2017,Scholar Stipend,Award Costs,Scholar,PIN029012,3195,
DFID,CSC,28/09/2017,Scholar Stipend,Award Costs,Scholar,PIN029013,3195,
DFID,CSC,28/09/2017,Scholar Stipend,Award Costs,Scholar,PIN029014,3195,
DFID,CSC,28/09/2017,Scholar Stipend,Award Costs,Scholar,PIN029015,1597.5,
DFID,CSC,28/09/2017,Scholar Stipend,Award Costs,Scholar,PIN029016,1597.5,
DFID,CSC,28/09/2017,Scholar Stipend,Award Costs,Scholar,PIN029017,3918,
DFID,CSC,28/09/2017,Scholar Stipend,Award Costs,Scholar,PIN029018,3195,
DFID,CSC,28/09/2017,Scholar Stipend,Award Costs,Scholar,PIN029019,3195,
DFID,CSC,28/09/2017,Scholar Stipend,Award Costs,Scholar,PIN029020,3195,
DFID,CSC,28/09/2017,Scholar Stipend,Award Costs,Scholar,PIN029021,3195,
DFID,CSC,28/09/2017,Scholar Stipend,Award Costs,Scholar,PIN029022,3195,
DFID,CSC,28/09/2017,Scholar Stipend,Award Costs,Scholar,PIN029023,3195,
DFID,CSC,28/09/2017,Scholar Stipend,Award Costs,Scholar,PIN029024,3195,
DFID,CSC,28/09/2017,Scholar Stipend,Award Costs,Scholar,PIN029025,1579.89,
DFID,CSC,28/09/2017,Scholar Stipend,Award Costs,Scholar,PIN029026,2009.72,
DFID,CSC,28/09/2017,Scholar Stipend,Award Costs,Scholar,PIN029027,3195,
DFID,CSC,28/09/2017,Scholar Stipend,Award Costs,Scholar,PIN029028,3195,
DFID,CSC,28/09/2017,Scholar Stipend,Award Costs,Scholar,PIN029029,3918,
DFID,CSC,28/09/2017,Scholar Stipend,Award Costs,Scholar,PIN029030,3195,
DFID,CSC,28/09/2017,Scholar Stipend,Award Costs,Scholar,PIN029031,3195,
DFID,CSC,28/09/2017,Scholar Stipend,Award Costs,Scholar,PIN029033,3195,
DFID,CSC,28/09/2017,Scholar Stipend,Award Costs,Scholar,PIN029034,3195,
DFID,CSC,28/09/2017,Scholar Stipend,Award Costs,Scholar,PIN029035,1597.5,
DFID,CSC,28/09/2017,Scholar Stipend,Award Costs,Scholar,PIN029036,1597.5,
DFID,CSC,28/09/2017,Scholar Stipend,Award Costs,Scholar,PIN029037,1597.5,
DFID,CSC,28/09/2017,Scholar Stipend,Award Costs,Scholar,PIN029038,1134.98,
DFID,CSC,28/09/2017,Scholar Stipend,Award Costs,Scholar,PIN029039,3918,
DFID,CSC,28/09/2017,Scholar Stipend,Award Costs,Scholar,PIN029040,3195,
DFID,CSC,28/09/2017,Scholar Stipend,Award Costs,Scholar,PIN029041,3195,
DFID,CSC,28/09/2017,Scholar Stipend,Award Costs,Scholar,PIN029042,3918,
DFID,CSC,28/09/2017,Scholar Stipend,Award Costs,Scholar,PIN029043,1597.5,
DFID,CSC,28/09/2017,Scholar Stipend,Award Costs,Scholar,PIN029044,1597.5,
DFID,CSC,28/09/2017,Scholar Stipend,Award Costs,Scholar,PIN029045,3195,
DFID,CSC,28/09/2017,Scholar Stipend,Award Costs,Scholar,PIN029046,2577.21,
DFID,CSC,28/09/2017,Scholar Stipend,Award Costs,Scholar,PIN029047,1597.5,
DFID,CSC,28/09/2017,Scholar Stipend,Award Costs,Scholar,PIN029048,3195,
DFID,CSC,28/09/2017,Scholar Stipend,Award Costs,Scholar,PIN029049,3195,
DFID,CSC,28/09/2017,Scholar Stipend,Award Costs,Scholar,PIN029050,3195,
DFID,CSC,28/09/2017,Scholar Stipend,Award Costs,Scholar,PIN029051,3195,
DFID,CSC,28/09/2017,Scholar Stipend,Award Costs,Scholar,PIN029052,3195,
DFID,CSC,28/09/2017,Scholar Stipend,Award Costs,Scholar,PIN029053,3195,
DFID,CSC,28/09/2017,Scholar Stipend,Award Costs,Scholar,PIN029054,3195,
DFID,CSC,28/09/2017,Scholar Stipend,Award Costs,Scholar,PIN029055,1065,
DFID,CSC,28/09/2017,Scholar Stipend,Award Costs,Scholar,PIN029056,2130,
DFID,CSC,28/09/2017,Scholar Stipend,Award Costs,Scholar,PIN029057,3195,
DFID,CSC,28/09/2017,Scholar Stipend,Award Costs,Scholar,PIN029058,3195,
DFID,CSC,28/09/2017,Scholar Stipend,Award Costs,Scholar,PIN029059,3195,
DFID,CSC,28/09/2017,Scholar Stipend,Award Costs,Scholar,PIN029060,3195,
DFID,CSC,28/09/2017,Scholar Stipend,Award Costs,Scholar,PIN029061,3195,
DFID,CSC,28/09/2017,Scholar Stipend,Award Costs,Scholar,PIN029062,3195,
DFID,CSC,28/09/2017,Scholar Stipend,Award Costs,Scholar,PIN029063,1065,
DFID,CSC,28/09/2017,Scholar Stipend,Award Costs,Scholar,PIN029064,3195,
DFID,CSC,28/09/2017,Scholar Stipend,Award Costs,Scholar,PIN029065,1597.5,
DFID,CSC,28/09/2017,Scholar Stipend,Award Costs,Scholar,PIN029066,3195,
DFID,CSC,28/09/2017,Scholar Stipend,Award Costs,Scholar,PIN029067,1597.5,
DFID,CSC,28/09/2017,Scholar Stipend,Award Costs,Scholar,PIN029068,3195,
DFID,CSC,28/09/2017,Scholar Stipend,Award Costs,Scholar,PIN029069,3195,
DFID,CSC,28/09/2017,Scholar Stipend,Award Costs,Scholar,PIN029070,2564.43,
DFID,CSC,28/09/2017,Scholar Stipend,Award Costs,Scholar,PIN029071,3195,
DFID,CSC,28/09/2017,Scholar Stipend,Award Costs,Scholar,PIN029072,1065,
DFID,CSC,28/09/2017,Scholar Stipend,Award Costs,Scholar,PIN029073,1309.93,
DFID,CSC,28/09/2017,Scholar Stipend,Award Costs,Scholar,PIN029074,3195,
DFID,CSC,28/09/2017,Scholar Stipend,Award Costs,Scholar,PIN029075,2864.78,
DFID,CSC,28/09/2017,Scholar Stipend,Award Costs,Scholar,PIN029076,3195,
DFID,CSC,28/09/2017,Scholar Stipend,Award Costs,Scholar,PIN029077,3195,
DFID,CSC,28/09/2017,Scholar Stipend,Award Costs,Scholar,PIN029078,3195,
DFID,CSC,28/09/2017,Scholar Stipend,Award Costs,Scholar,PIN029079,3918,
DFID,CSC,28/09/2017,Scholar Stipend,Award Costs,Scholar,PIN029080,3195,
DFID,CSC,28/09/2017,Scholar Stipend,Award Costs,Scholar,PIN029082,3195,
DFID,CSC,28/09/2017,Scholar Stipend,Award Costs,Scholar,PIN029083,3195,
DFID,CSC,28/09/2017,Scholar Stipend,Award Costs,Scholar,PIN029084,3195,
DFID,CSC,28/09/2017,Scholar Stipend,Award Costs,Scholar,PIN029085,1939.74,
DFID,CSC,28/09/2017,Scholar Stipend,Award Costs,Scholar,PIN029086,3195,
DFID,CSC,28/09/2017,Scholar Stipend,Award Costs,Scholar,PIN029087,1597.5,
DFID,CSC,28/09/2017,Scholar Stipend,Award Costs,Scholar,PIN029088,2130,
DFID,CSC,28/09/2017,Scholar Stipend,Award Costs,Scholar,PIN029089,1959,
DFID,CSC,28/09/2017,Scholar Stipend,Award Costs,Scholar,PIN029090,3195,
DFID,CSC,28/09/2017,Scholar Stipend,Award Costs,Scholar,PIN029091,3195,
DFID,CSC,28/09/2017,Scholar Stipend,Award Costs,Scholar,PIN029092,3195,
DFID,CSC,28/09/2017,Scholar Stipend,Award Costs,Scholar,PIN029093,3195,
DFID,CSC,28/09/2017,Scholar Stipend,Award Costs,Scholar,PIN029095,1597.5,
DFID,CSC,28/09/2017,Scholar Stipend,Award Costs,Scholar,PIN029096,3195,
DFID,CSC,28/09/2017,Scholar Stipend,Award Costs,Scholar,PIN029097,3195,
DFID,CSC,28/09/2017,Scholar Stipend,Award Costs,Scholar,PIN029098,3195,
DFID,CSC,28/09/2017,Scholar Stipend,Award Costs,Scholar,PIN029099,1959,
DFID,CSC,28/09/2017,Scholar Stipend,Award Costs,Scholar,PIN029100,3195,
DFID,CSC,28/09/2017,Scholar Stipend,Award Costs,Scholar,PIN029101,3918,
DFID,CSC,28/09/2017,Scholar Stipend,Award Costs,Scholar,PIN029102,3918,
DFID,CSC,28/09/2017,Scholar Stipend,Award Costs,Scholar,PIN029103,3195,
DFID,CSC,28/09/2017,Scholar Stipend,Award Costs,Scholar,PIN029104,3195,
DFID,CSC,28/09/2017,Scholar Stipend,Award Costs,Scholar,PIN029105,3195,
DFID,CSC,28/09/2017,Scholar Stipend,Award Costs,Scholar,PIN029106,3195,
DFID,CSC,28/09/2017,Scholar Stipend,Award Costs,Scholar,PIN029107,3195,
DFID,CSC,28/09/2017,Scholar Stipend,Award Costs,Scholar,PIN029108,3195,
DFID,CSC,28/09/2017,Scholar Stipend,Award Costs,Scholar,PIN029109,3195,
DFID,CSC,28/09/2017,Scholar Stipend,Award Costs,Scholar,PIN029110,3918,
DFID,CSC,28/09/2017,Scholar Stipend,Award Costs,Scholar,PIN029111,1554.86,
DFID,CSC,28/09/2017,Scholar Stipend,Award Costs,Scholar,PIN029112,1597.5,
DFID,CSC,28/09/2017,Scholar Stipend,Award Costs,Scholar,PIN029113,3195,
DFID,CSC,28/09/2017,Scholar Stipend,Award Costs,Scholar,PIN029114,3195,
DFID,CSC,28/09/2017,Scholar Stipend,Award Costs,Scholar,PIN029115,3195,
DFID,CSC,28/09/2017,Scholar Stipend,Award Costs,Scholar,PIN029116,3918,
DFID,CSC,28/09/2017,Scholar Stipend,Award Costs,Scholar,PIN029117,3195,
DFID,CSC,28/09/2017,Scholar Stipend,Award Costs,Scholar,PIN029118,1597.5,
DFID,CSC,28/09/2017,Scholar Stipend,Award Costs,Scholar,PIN029119,1597.5,
DFID,CSC,28/09/2017,Scholar Stipend,Award Costs,Scholar,PIN029120,3195,
DFID,CSC,28/09/2017,Scholar Stipend,Award Costs,Scholar,PIN029121,1597.5,
DFID,CSC,28/09/2017,Scholar Stipend,Award Costs,Scholar,PIN029122,3195,
DFID,CSC,28/09/2017,Scholar Stipend,Award Costs,Scholar,PIN029123,3195,
DFID,CSC,28/09/2017,Scholar Stipend,Award Costs,Scholar,PIN029124,3195,
DFID,CSC,28/09/2017,Scholar Stipend,Award Costs,Scholar,PIN029125,3918,
DFID,CSC,28/09/2017,Scholar Stipend,Award Costs,Scholar,PIN029126,3195,
DFID,CSC,28/09/2017,Scholar Stipend,Award Costs,Scholar,PIN029127,3195,
DFID,CSC,28/09/2017,Scholar Stipend,Award Costs,Scholar,PIN029128,3195,
DFID,CSC,28/09/2017,Scholar Stipend,Award Costs,Scholar,PIN029129,3195,
DFID,CSC,28/09/2017,Scholar Stipend,Award Costs,Scholar,PIN029130,3195,
DFID,CSC,28/09/2017,Scholar Stipend,Award Costs,Scholar,PIN029132,3195,
DFID,CSC,28/09/2017,Scholar Allowances,Award Costs,Scholar,PIN029138,687,
DFID,CSC,28/09/2017,Scholar Allowances,Award Costs,Scholar,PIN029139,1023,
DFID,CSC,28/09/2017,Scholar Allowances,Award Costs,Scholar,PIN029140,687,
DFID,CSC,28/09/2017,Scholar Allowances,Award Costs,Scholar,PIN029141,687,
DFID,CSC,28/09/2017,Scholar Allowances,Award Costs,Scholar,PIN029143,1023,
DFID,CSC,28/09/2017,Scholar Allowances,Award Costs,Scholar,PIN029144,687,
DFID,CSC,28/09/2017,Scholar Allowances,Award Costs,Scholar,PIN029145,687,
DFID,CSC,28/09/2017,Scholar Allowances,Award Costs,Scholar,PIN029146,687,
DFID,CSC,28/09/2017,Scholar Allowances,Award Costs,Scholar,PIN029147,687,
DFID,CSC,28/09/2017,Scholar Allowances,Award Costs,Scholar,PIN029148,687,
DFID,CSC,28/09/2017,Scholar Allowances,Award Costs,Scholar,PIN029149,687,
DFID,CSC,28/09/2017,Scholar Allowances,Award Costs,Scholar,PIN029150,616,
DFID,CSC,28/09/2017,Scholar Allowances,Award Costs,Scholar,PIN029151,687,
DFID,CSC,28/09/2017,Scholar Allowances,Award Costs,Scholar,PIN029152,687,
DFID,CSC,28/09/2017,Scholar Allowances,Award Costs,Scholar,PIN029153,606.05,
DFID,CSC,28/09/2017,Scholar Allowances,Award Costs,Scholar,PIN029154,1707,
DFID,CSC,28/09/2017,Scholar Allowances,Award Costs,Scholar,PIN029155,687,
DFID,CSC,28/09/2017,Scholar Allowances,Award Costs,Scholar,PIN029156,687,
DFID,CSC,28/09/2017,Scholar Allowances,Award Costs,Scholar,PIN029158,1023,
DFID,CSC,28/09/2017,Scholar Allowances,Award Costs,Scholar,PIN029159,687,
DFID,CSC,28/09/2017,Scholar Allowances,Award Costs,Scholar,PIN029160,1023,
DFID,CSC,28/09/2017,Scholar Allowances,Award Costs,Scholar,PIN029161,914,
DFID,CSC,28/09/2017,Scholar Allowances,Award Costs,Scholar,PIN029163,1023,
DFID,CSC,28/09/2017,Scholar Allowances,Award Costs,Scholar,PIN029164,1023,
DFID,CSC,28/09/2017,Scholar Allowances,Award Costs,Scholar,PIN029165,1023,
DFID,CSC,28/09/2017,Scholar Allowances,Award Costs,Scholar,PIN029167,687,
DFID,CSC,28/09/2017,Scholar Allowances,Award Costs,Scholar,PIN029168,687,
DFID,CSC,28/09/2017,Scholar Allowances,Award Costs,Scholar,PIN029169,687,
DFID,CSC,28/09/2017,Scholar Allowances,Award Costs,Scholar,PIN029171,1023,
DFID,CSC,28/09/2017,Scholar Allowances,Award Costs,Scholar,PIN029172,1359,
DFID,CSC,28/09/2017,Scholar Allowances,Award Costs,Scholar,PIN029173,1023,
DFID,CSC,28/09/2017,Scholar Allowances,Award Costs,Scholar,PIN029174,1359,
DFID,CSC,28/09/2017,Scholar Allowances,Award Costs,Scholar,PIN029175,1333.7,
DFID,CSC,28/09/2017,Scholar Allowances,Award Costs,Scholar,PIN029176,1023,
DFID,CSC,28/09/2017,Scholar Allowances,Award Costs,Scholar,PIN029177,1371,
DFID,CSC,28/09/2017,Scholar Allowances,Award Costs,Scholar,PIN029178,1359,
DFID,CSC,28/09/2017,Scholar Allowances,Award Costs,Scholar,PIN029179,1359,
DFID,CSC,28/09/2017,Scholar Allowances,Award Costs,Scholar,PIN029181,1359,
DFID,CSC,28/09/2017,Scholar Allowances,Award Costs,Scholar,PIN029182,687,
DFID,CSC,28/09/2017,Scholar Allowances,Award Costs,Scholar,PIN029183,1023,
DFID,CSC,28/09/2017,Scholar Allowances,Award Costs,Scholar,PIN029184,1371,
DFID,CSC,28/09/2017,Scholar Allowances,Award Costs,Scholar,PIN029185,1023,
DFID,CSC,28/09/2017,Scholar Allowances,Award Costs,Scholar,PIN029186,687,
DFID,CSC,28/09/2017,Scholar Allowances,Award Costs,Scholar,PIN029187,1877.54,
DFID,CSC,28/09/2017,Scholar Allowances,Award Costs,Scholar,PIN029188,687,
DFID,CSC,28/09/2017,Scholar Allowances,Award Costs,Scholar,PIN029190,616.71,
DFID,CSC,28/09/2017,Scholar Allowances,Award Costs,Scholar,PIN029191,1023,
DFID,CSC,28/09/2017,Scholar Allowances,Award Costs,Scholar,PIN029193,687,
DFID,CSC,28/09/2017,Scholar Allowances,Award Costs,Scholar,PIN029194,687,
DFID,CSC,28/09/2017,Scholar Allowances,Award Costs,Scholar,PIN029195,687,
DFID,CSC,28/09/2017,Scholar Allowances,Award Costs,Scholar,PIN029196,1359,
DFID,CSC,28/09/2017,Scholar Allowances,Award Costs,Scholar,PIN029197,1359,
DFID,CSC,28/09/2017,Scholar Allowances,Award Costs,Scholar,PIN029198,687,
DFID,CSC,28/09/2017,Scholar Allowances,Award Costs,Scholar,PIN029199,1359,
DFID,CSC,28/09/2017,Scholar Allowances,Award Costs,Scholar,PIN029200,1023,
DFID,CSC,28/09/2017,Scholar Allowances,Award Costs,Scholar,PIN029202,687,
DFID,CSC,28/09/2017,Scholar Allowances,Award Costs,Scholar,PIN029203,1023,
DFID,CSC,28/09/2017,Scholar Allowances,Award Costs,Scholar,PIN029206,687,
DFID,CSC,28/09/2017,Scholar Allowances,Award Costs,Scholar,PIN029208,1371,
DFID,CSC,28/09/2017,Scholar Allowances,Award Costs,Scholar,PIN029209,687,
DFID,CSC,28/09/2017,Scholar Allowances,Award Costs,Scholar,PIN029210,687,
DFID,CSC,28/09/2017,Scholar Allowances,Award Costs,Scholar,PIN029211,1359,
DFID,CSC,28/09/2017,Scholar Allowances,Award Costs,Scholar,PIN029212,1359,
DFID,CSC,28/09/2017,Scholar Allowances,Award Costs,Scholar,PIN029213,687,
DFID,CSC,28/09/2017,Scholar Allowances,Award Costs,Scholar,PIN029214,1371,
DFID,CSC,28/09/2017,Scholar Allowances,Award Costs,Scholar,PIN029215,687,
DFID,CSC,28/09/2017,Scholar Allowances,Award Costs,Scholar,PIN029216,687,
DFID,CSC,28/09/2017,Scholar Allowances,Award Costs,Scholar,PIN029217,1359,
DFID,CSC,28/09/2017,Scholar Allowances,Award Costs,Scholar,PIN029218,1023,
DFID,CSC,28/09/2017,Scholar Allowances,Award Costs,Scholar,PIN029219,687,
DFID,CSC,28/09/2017,Scholar Allowances,Award Costs,Scholar,PIN029221,687,
DFID,CSC,28/09/2017,Scholar Allowances,Award Costs,Scholar,PIN029222,1359,
DFID,CSC,28/09/2017,Scholar Allowances,Award Costs,Scholar,PIN029223,687,
DFID,CSC,28/09/2017,Scholar Allowances,Award Costs,Scholar,PIN029224,687,
DFID,CSC,28/09/2017,Scholar Allowances,Award Costs,Scholar,PIN029225,1023,
DFID,CSC,28/09/2017,Scholar Allowances,Award Costs,Scholar,PIN029226,1023,
DFID,CSC,28/09/2017,Scholar Allowances,Award Costs,Scholar,PIN029227,687,
DFID,CSC,28/09/2017,Scholar Allowances,Award Costs,Scholar,PIN029228,687,
DFID,CSC,28/09/2017,Scholar Allowances,Award Costs,Scholar,PIN029229,687,
DFID,CSC,28/09/2017,Scholar Allowances,Award Costs,Scholar,PIN029230,687,
DFID,CSC,28/09/2017,Scholar Allowances,Award Costs,Scholar,PIN029231,687,
DFID,CSC,28/09/2017,Scholar Allowances,Award Costs,Scholar,PIN029232,687,
DFID,CSC,28/09/2017,Scholar Allowances,Award Costs,Scholar,PIN029233,687,
DFID,CSC,28/09/2017,Scholar Allowances,Award Costs,Scholar,PIN029235,687,
DFID,CSC,28/09/2017,Scholar Allowances,Award Costs,Scholar,PIN029236,687,
DFID,CSC,28/09/2017,Scholar Allowances,Award Costs,Scholar,PIN029237,911,
DFID,CSC,28/09/2017,Scholar Allowances,Award Costs,Scholar,PIN029238,687,
DFID,CSC,28/09/2017,Scholar Allowances,Award Costs,Scholar,PIN029239,687,
DFID,CSC,28/09/2017,Scholar Allowances,Award Costs,Scholar,PIN029240,687,
DFID,CSC,28/09/2017,Scholar Allowances,Award Costs,Scholar,PIN029241,687,
DFID,CSC,28/09/2017,Scholar Allowances,Award Costs,Scholar,PIN029242,687,
DFID,CSC,28/09/2017,Scholar Allowances,Award Costs,Scholar,PIN029243,1373.71,
DFID,CSC,28/09/2017,Scholar Allowances,Award Costs,Scholar,PIN029244,687,
DFID,CSC,28/09/2017,Scholar Allowances,Award Costs,Scholar,PIN029245,616,
DFID,CSC,28/09/2017,Scholar Allowances,Award Costs,Scholar,PIN029246,606.05,
DFID,CSC,28/09/2017,Scholar Allowances,Award Costs,Scholar,PIN029247,687,
DFID,CSC,28/09/2017,Scholar Allowances,Award Costs,Scholar,PIN029249,687,
DFID,CSC,28/09/2017,Scholar Allowances,Award Costs,Scholar,PIN029250,687,
DFID,CSC,28/09/2017,Scholar Allowances,Award Costs,Scholar,PIN029251,687,
DFID,CSC,28/09/2017,Scholar Allowances,Award Costs,Scholar,PIN029252,687,
DFID,CSC,28/09/2017,Scholar Allowances,Award Costs,Scholar,PIN029253,687,
DFID,CSC,28/09/2017,Scholar Allowances,Award Costs,Scholar,PIN029255,687,
DFID,CSC,28/09/2017,Scholar Allowances,Award Costs,Scholar,PIN029256,687,
DFID,CSC,28/09/2017,Scholar Allowances,Award Costs,Scholar,PIN029257,687,
DFID,CSC,28/09/2017,Scholar Allowances,Award Costs,Scholar,PIN029258,687,
DFID,CSC,28/09/2017,Scholar Allowances,Award Costs,Scholar,PIN029259,687,
DFID,CSC,28/09/2017,Scholar Allowances,Award Costs,Scholar,PIN029261,687,
DFID,CSC,28/09/2017,Scholar Allowances,Award Costs,Scholar,PIN029262,687,
DFID,CSC,28/09/2017,Scholar Allowances,Award Costs,Scholar,PIN029263,687,
DFID,CSC,28/09/2017,Scholar Allowances,Award Costs,Scholar,PIN029265,687,
DFID,CSC,28/09/2017,Scholar Allowances,Award Costs,Scholar,PIN029266,687,
DFID,CSC,28/09/2017,Scholar Allowances,Award Costs,Scholar,PIN029267,687,
DFID,CSC,28/09/2017,Scholar Allowances,Award Costs,Scholar,PIN029268,1333.7,
DFID,CSC,28/09/2017,Scholar Allowances,Award Costs,Scholar,PIN029269,687,
DFID,CSC,28/09/2017,Scholar Allowances,Award Costs,Scholar,PIN029270,687,
DFID,CSC,28/09/2017,Scholar Allowances,Award Costs,Scholar,PIN029271,687,
DFID,CSC,28/09/2017,Scholar Allowances,Award Costs,Scholar,PIN029272,687,
DFID,CSC,28/09/2017,Scholar Allowances,Award Costs,Scholar,PIN029273,687,
DFID,CSC,28/09/2017,Scholar Allowances,Award Costs,Scholar,PIN029274,687,
DFID,CSC,28/09/2017,Scholar Allowances,Award Costs,Scholar,PIN029275,687,
DFID,CSC,28/09/2017,Scholar Allowances,Award Costs,Scholar,PIN029276,687,
DFID,CSC,28/09/2017,Scholar Allowances,Award Costs,Scholar,PIN029277,687,
DFID,CSC,28/09/2017,Scholar Allowances,Award Costs,Scholar,PIN029280,687,
DFID,CSC,28/09/2017,Scholar Allowances,Award Costs,Scholar,PIN029282,687,
DFID,CSC,28/09/2017,Scholar Allowances,Award Costs,Scholar,PIN029283,687,
DFID,CSC,28/09/2017,Scholar Allowances,Award Costs,Scholar,PIN029284,687,
DFID,CSC,28/09/2017,Scholar Allowances,Award Costs,Scholar,PIN029285,687,
DFID,CSC,28/09/2017,Scholar Allowances,Award Costs,Scholar,PIN029286,687,
DFID,CSC,28/09/2017,Scholar Allowances,Award Costs,Scholar,PIN029287,687,
DFID,CSC,28/09/2017,Scholar Allowances,Award Costs,Scholar,PIN029288,687,
DFID,CSC,28/09/2017,Scholar Allowances,Award Costs,Scholar,PIN029289,687,
DFID,CSC,28/09/2017,Scholar Allowances,Award Costs,Scholar,PIN029290,687,
DFID,CSC,28/09/2017,Scholar Allowances,Award Costs,Scholar,PIN029292,687,
DFID,CSC,28/09/2017,Scholar Allowances,Award Costs,Scholar,PIN029293,687,
DFID,CSC,28/09/2017,Scholar Allowances,Award Costs,Scholar,PIN029294,687,
DFID,CSC,28/09/2017,Scholar Allowances,Award Costs,Scholar,PIN029297,687,
DFID,CSC,28/09/2017,Scholar Allowances,Award Costs,Scholar,PIN029298,687,
DFID,CSC,28/09/2017,Scholar Allowances,Award Costs,Scholar,PIN029300,687,
DFID,CSC,28/09/2017,Scholar Allowances,Award Costs,Scholar,PIN029301,687,
DFID,CSC,28/09/2017,Scholar Allowances,Award Costs,Scholar,PIN029302,687,
DFID,CSC,28/09/2017,Scholar Allowances,Award Costs,Scholar,PIN029303,687,
DFID,CSC,28/09/2017,Scholar Allowances,Award Costs,Scholar,PIN029304,687,
DFID,CSC,28/09/2017,Scholar Allowances,Award Costs,Scholar,PIN029305,687,
DFID,CSC,28/09/2017,Scholar Allowances,Award Costs,Scholar,PIN029306,687,
DFID,CSC,28/09/2017,Scholar Allowances,Award Costs,Scholar,PIN029307,687,
DFID,CSC,28/09/2017,Scholar Allowances,Award Costs,Scholar,PIN029308,687,
DFID,CSC,28/09/2017,Scholar Allowances,Award Costs,Scholar,PIN029309,687,
DFID,CSC,28/09/2017,Scholar Allowances,Award Costs,Scholar,PIN029310,687,
DFID,CSC,28/09/2017,Scholar Allowances,Award Costs,Scholar,PIN029311,687,
DFID,CSC,28/09/2017,Scholar Allowances,Award Costs,Scholar,PIN029312,687,
DFID,CSC,28/09/2017,Scholar Allowances,Award Costs,Scholar,PIN029313,687,
DFID,CSC,28/09/2017,Scholar Allowances,Award Costs,Scholar,PIN029314,687,
DFID,CSC,28/09/2017,Scholar Allowances,Award Costs,Scholar,PIN029315,687,
DFID,CSC,28/09/2017,Scholar Stipend,Award Costs,Scholar,PIN029318,1043,
DFID,CSC,28/09/2017,Scholar Stipend,Award Costs,Scholar,PIN029331,536.34,
DFID,CSC,28/09/2017,Scholar Stipend,Award Costs,Scholar,PIN029332,514.89,
DFID,CSC,28/09/2017,Scholar Stipend,Award Costs,Scholar,PIN029341,507.35,
DFID,CSC,28/09/2017,Bank Charges,Award Costs,Mastercard Prepaid Management Services Ltd,PIN029455,1076.31,
DFID,CSC,28/09/2017,Visa Costs,Award Costs,Mastercard Prepaid Management Services Ltd,PIN029455,235,
DFID,CSC,28/09/2017,Scholar Allowances,Award Costs,Mastercard Prepaid Management Services Ltd,PIN029455,447.92,
DFID,CSC,28/09/2017,Scholar Stipend,Award Costs,Mastercard Prepaid Management Services Ltd,PIN029455,1361.61,
DFID,CSC,28/09/2017,Visa Costs,Award Costs,Mastercard Prepaid Management Services Ltd,PIN029455,235,
DFID,CSC,28/09/2017,Scholar Allowances,Award Costs,Mastercard Prepaid Management Services Ltd,PIN029455,447.92,
DFID,CSC,28/09/2017,Scholar Stipend,Award Costs,Mastercard Prepaid Management Services Ltd,PIN029455,1361.61,
DFID,CSC,28/09/2017,Visa Costs,Award Costs,Mastercard Prepaid Management Services Ltd,PIN029455,235,
DFID,CSC,28/09/2017,Scholar Allowances,Award Costs,Mastercard Prepaid Management Services Ltd,PIN029455,447.92,
DFID,CSC,28/09/2017,Scholar Stipend,Award Costs,Mastercard Prepaid Management Services Ltd,PIN029455,1361.61,
DFID,CSC,28/09/2017,Visa Costs,Award Costs,Mastercard Prepaid Management Services Ltd,PIN029455,235,
DFID,CSC,28/09/2017,Scholar Allowances,Award Costs,Mastercard Prepaid Management Services Ltd,PIN029455,447.92,
DFID,CSC,28/09/2017,Scholar Stipend,Award Costs,Mastercard Prepaid Management Services Ltd,PIN029455,1361.61,
DFID,CSC,28/09/2017,Visa Costs,Award Costs,Mastercard Prepaid Management Services Ltd,PIN029455,235,
DFID,CSC,28/09/2017,Scholar Allowances,Award Costs,Mastercard Prepaid Management Services Ltd,PIN029455,447.92,
DFID,CSC,28/09/2017,Scholar Stipend,Award Costs,Mastercard Prepaid Management Services Ltd,PIN029455,1361.61,
DFID,CSC,28/09/2017,Visa Costs,Award Costs,Mastercard Prepaid Management Services Ltd,PIN029455,235,
DFID,CSC,28/09/2017,Scholar Allowances,Award Costs,Mastercard Prepaid Management Services Ltd,PIN029455,895.83,
DFID,CSC,28/09/2017,Scholar Stipend,Award Costs,Mastercard Prepaid Management Services Ltd,PIN029455,8222.03,
DFID,CSC,28/09/2017,Visa Costs,Award Costs,Mastercard Prepaid Management Services Ltd,PIN029455,235,
DFID,CSC,28/09/2017,Scholar Allowances,Award Costs,Mastercard Prepaid Management Services Ltd,PIN029455,447.92,
DFID,CSC,28/09/2017,Scholar Stipend,Award Costs,Mastercard Prepaid Management Services Ltd,PIN029455,1361.61,
DFID,CSC,28/09/2017,Visa Costs,Award Costs,Mastercard Prepaid Management Services Ltd,PIN029455,235,
DFID,CSC,28/09/2017,Scholar Allowances,Award Costs,Mastercard Prepaid Management Services Ltd,PIN029455,895.83,
DFID,CSC,28/09/2017,Scholar Stipend,Award Costs,Mastercard Prepaid Management Services Ltd,PIN029455,4660.9,
DFID,CSC,28/09/2017,Visa Costs,Award Costs,Mastercard Prepaid Management Services Ltd,PIN029455,235,
DFID,CSC,28/09/2017,Scholar Allowances,Award Costs,Mastercard Prepaid Management Services Ltd,PIN029455,447.92,
DFID,CSC,28/09/2017,Scholar Stipend,Award Costs,Mastercard Prepaid Management Services Ltd,PIN029455,1361.61,
DFID,CSC,28/09/2017,Visa Costs,Award Costs,Mastercard Prepaid Management Services Ltd,PIN029455,235,
DFID,CSC,28/09/2017,Scholar Allowances,Award Costs,Mastercard Prepaid Management Services Ltd,PIN029455,895.83,
DFID,CSC,28/09/2017,Scholar Stipend,Award Costs,Mastercard Prepaid Management Services Ltd,PIN029455,5326.13,
DFID,CSC,28/09/2017,Visa Costs,Award Costs,Mastercard Prepaid Management Services Ltd,PIN029455,235,
DFID,CSC,28/09/2017,Scholar Allowances,Award Costs,Mastercard Prepaid Management Services Ltd,PIN029455,895.83,
DFID,CSC,28/09/2017,Scholar Stipend,Award Costs,Mastercard Prepaid Management Services Ltd,PIN029455,5520.99,
DFID,CSC,28/09/2017,Scholar Allowances,Award Costs,Mastercard Prepaid Management Services Ltd,PIN029455,414,
DFID,CSC,28/09/2017,Scholar Stipend,Award Costs,Mastercard Prepaid Management Services Ltd,PIN029455,3179.7,
DFID,CSC,28/09/2017,Scholar Allowances,Award Costs,Mastercard Prepaid Management Services Ltd,PIN029455,414,
DFID,CSC,28/09/2017,Scholar Stipend,Award Costs,Mastercard Prepaid Management Services Ltd,PIN029455,3195,
DFID,CSC,28/09/2017,Scholar Stipend,Award Costs,Mastercard Prepaid Management Services Ltd,PIN029455,3179.7,
DFID,CSC,28/09/2017,Scholar Allowances,Award Costs,Mastercard Prepaid Management Services Ltd,PIN029455,414,
DFID,CSC,28/09/2017,Scholar Stipend,Award Costs,Mastercard Prepaid Management Services Ltd,PIN029455,3960.91,
DFID,CSC,28/09/2017,Scholar Allowances,Award Costs,Mastercard Prepaid Management Services Ltd,PIN029455,414,
DFID,CSC,28/09/2017,Scholar Stipend,Award Costs,Mastercard Prepaid Management Services Ltd,PIN029455,3474.92,
DFID,CSC,28/09/2017,Scholar Allowances,Award Costs,Mastercard Prepaid Management Services Ltd,PIN029455,414,
DFID,CSC,28/09/2017,Scholar Stipend,Award Costs,Mastercard Prepaid Management Services Ltd,PIN029455,3179.7,
DFID,CSC,28/09/2017,Scholar Allowances,Award Costs,Mastercard Prepaid Management Services Ltd,PIN029455,414,
DFID,CSC,28/09/2017,Scholar Stipend,Award Costs,Mastercard Prepaid Management Services Ltd,PIN029455,4218.37,
DFID,CSC,28/09/2017,Scholar Allowances,Award Costs,Mastercard Prepaid Management Services Ltd,PIN029455,414,
DFID,CSC,28/09/2017,Scholar Stipend,Award Costs,Mastercard Prepaid Management Services Ltd,PIN029455,3899.3,
DFID,CSC,28/09/2017,Scholar Allowances,Award Costs,Mastercard Prepaid Management Services Ltd,PIN029455,414,
DFID,CSC,28/09/2017,Scholar Stipend,Award Costs,Mastercard Prepaid Management Services Ltd,PIN029455,3918,
DFID,CSC,28/09/2017,Scholar Allowances,Award Costs,Mastercard Prepaid Management Services Ltd,PIN029455,414,
DFID,CSC,28/09/2017,Scholar Stipend,Award Costs,Mastercard Prepaid Management Services Ltd,PIN029455,3195,
DFID,CSC,28/09/2017,Scholar Allowances,Award Costs,Mastercard Prepaid Management Services Ltd,PIN029455,414,
DFID,CSC,28/09/2017,Scholar Stipend,Award Costs,Mastercard Prepaid Management Services Ltd,PIN029455,3404.94,
DFID,CSC,28/09/2017,Scholar Allowances,Award Costs,Mastercard Prepaid Management Services Ltd,PIN029455,414,
DFID,CSC,28/09/2017,Scholar Stipend,Award Costs,Mastercard Prepaid Management Services Ltd,PIN029455,3195,
DFID,CSC,28/09/2017,Scholar Allowances,Award Costs,Mastercard Prepaid Management Services Ltd,PIN029455,414,
DFID,CSC,28/09/2017,Scholar Stipend,Award Costs,Mastercard Prepaid Management Services Ltd,PIN029455,3229.99,
DFID,CSC,28/09/2017,Visa Costs,Award Costs,Mastercard Prepaid Management Services Ltd,PIN029455,235,
DFID,CSC,28/09/2017,Scholar Allowances,Award Costs,Mastercard Prepaid Management Services Ltd,PIN029455,895.83,
DFID,CSC,28/09/2017,Scholar Stipend,Award Costs,Mastercard Prepaid Management Services Ltd,PIN029455,4660.9,
DFID,CSC,28/09/2017,Visa Costs,Award Costs,Mastercard Prepaid Management Services Ltd,PIN029455,235,
DFID,CSC,28/09/2017,Scholar Allowances,Award Costs,Mastercard Prepaid Management Services Ltd,PIN029455,895.83,
DFID,CSC,28/09/2017,Scholar Stipend,Award Costs,Mastercard Prepaid Management Services Ltd,PIN029455,4660.9,
DFID,CSC,28/09/2017,Scholar Allowances,Award Costs,Mastercard Prepaid Management Services Ltd,PIN029455,414,
DFID,CSC,28/09/2017,Scholar Stipend,Award Costs,Mastercard Prepaid Management Services Ltd,PIN029455,2864.79,
DFID,CSC,29/09/2017,Scholar Engagement,Programme Costs,HOST UK,PIN029364,333.33,
DFID,CSC,29/09/2017,Scholar Engagement,Programme Costs,HOST UK,PIN029364,1666.67,
DFID,CSC,29/09/2017,Scholar Stipend,Award Costs,Scholar,PIN029371,1597.5,
DFID,CSC,29/09/2017,Bank Charges,Award Costs,Mastercard Prepaid Management Services Ltd,PIN029454,261.77,
DFID,CSC,29/09/2017,Scholar Allowances,Award Costs,Mastercard Prepaid Management Services Ltd,PIN029454,414,
DFID,CSC,29/09/2017,Scholar Stipend,Award Costs,Mastercard Prepaid Management Services Ltd,PIN029454,3649.87,
DFID,CSC,29/09/2017,Scholar Allowances,Award Costs,Mastercard Prepaid Management Services Ltd,PIN029454,414,
DFID,CSC,29/09/2017,Scholar Stipend,Award Costs,Mastercard Prepaid Management Services Ltd,PIN029454,4347.1,
DFID,CSC,29/09/2017,Scholar Allowances,Award Costs,Mastercard Prepaid Management Services Ltd,PIN029454,414,
DFID,CSC,29/09/2017,Scholar Stipend,Award Costs,Mastercard Prepaid Management Services Ltd,PIN029454,3195,
DFID,CSC,29/09/2017,Scholar Allowances,Award Costs,Mastercard Prepaid Management Services Ltd,PIN029454,414,
DFID,CSC,29/09/2017,Scholar Stipend,Award Costs,Mastercard Prepaid Management Services Ltd,PIN029454,3960.91,
DFID,CSC,29/09/2017,Scholar Allowances,Award Costs,Mastercard Prepaid Management Services Ltd,PIN029454,414,
DFID,CSC,29/09/2017,Scholar Stipend,Award Costs,Mastercard Prepaid Management Services Ltd,PIN029454,3195,
DFID,CSC,29/09/2017,Visa Costs,Award Costs,Mastercard Prepaid Management Services Ltd,PIN029454,235,
DFID,CSC,29/09/2017,Scholar Allowances,Award Costs,Mastercard Prepaid Management Services Ltd,PIN029454,447.92,
DFID,CSC,29/09/2017,Scholar Stipend,Award Costs,Mastercard Prepaid Management Services Ltd,PIN029454,1361.61,
DFID,CSC,29/09/2017,Scholar Allowances,Award Costs,Mastercard Prepaid Management Services Ltd,PIN029454,414,
DFID,CSC,29/09/2017,Scholar Stipend,Award Costs,Mastercard Prepaid Management Services Ltd,PIN029454,3299.97,
DFID,CSC,15/09/2017,Tuition Fee,Award Costs,Scholar,NOM000639,-1100,
DFID,CSC,29/09/2017,Scholar Stipend,Award Costs,Scholar,NOM000641,-1043,
DFID,CSC,04/09/2017,Visa Costs,Award Costs,NatWest CC,NOM000642,273,
DFID,CSC,04/09/2017,Scholar Engagement,Programme Costs,NatWest CC,NOM000642,200.65,
DFID,CSC,04/09/2017,Scholar Engagement,Programme Costs,NatWest CC,NOM000642,81,
DFID,CSC,04/09/2017,Secretariat Service Provision,Admin Costs,NatWest CC,NOM000642,491.74,
DFID,CSC,04/09/2017,Scholar Engagement,Programme Costs,NatWest CC,NOM000642,54.62,
DFID,CSC,29/09/2017,Postage & Courier,Award Costs,DHL,NOM000644,5089.48,
DFID,CSC,29/09/2017,Postage & Courier,Admin Costs,DHL,NOM000644,12.17,
DFID,CSC,29/09/2017,Postage & Courier,Programme Costs,DHL,NOM000644,422.64,
